Cogmind - Beta 17.1 @@@ ROGUE MODE // 2026.09.17 @ 01:21:52 Player: H3-MLN Result: Destroyed by Architect with Modified Sigix Sheargun Performance ------------- Evolutions (9) 4500 Regions Visited (25) 5000 Robots Destroyed (523) 2615 Value Destroyed (33164) 33164 Prototype IDs (388) 7760 Alien Tech Used (13) 2600 Bonus (46782) 46782 TOTAL SCORE: 102421 Bonus ------- Triggered High Security 500 High Alert Combat Kills 13902 Follower Combat Kills 2650 Hunted by Unchained 1000 Destroyed Unchained 1000 Network Hubs Disabled 800 Registered with UFD 300 Met Optimus in HQ 500 Met Zhirov 300 Built Enhanced Grunts 300 A7 Reached Mainframe 300 Met R17 at Cetus 500 Found Hidden Lab 3000 Met R17 at Research 2000 Scanned by Researcher 500 Met Optimus at Protoforge 1000 Destroyed MAIN.C Guards 500 Met MAIN.C 5000 Destroyed MAIN.C Shell 5000 Destroyed MAIN.C 10000 Met Architect 300 Destroyed A8 300 Friendly Fire -2870 Cogmind --------- Core Integrity 0/1600 Matter 300/300 Energy 1398/1400 System Corruption 2% Temperature Cool (2) Movement Hovering (56) Location -1/Access_0 Parts ------- > --- POWER (4) -------- Hybrid Graviton Reactor > --- PROPULSION (10) -- Concept Combat Aerolev Unit Concept Combat Aerolev Unit > --- UTILITY (4) ------ Concept Thermoelectric Network Concept Weapon Articulator > --- WEAPON (8) ------- Concept Deflector Sword > --- INVENTORY (5) ---- Experimental Energy Well (600) Concept Chromion Battery (800) V4-D3R's Forcewell (750) Concept NT7 Matterbank (750) Experimental Jetlance Peak State ------------ > --- POWER ------------ Improved Quantum Reactor Hybrid Graviton Reactor Concept Zero-point Core Concept Zero-point Core > --- PROPULSION ------- Experimental Antigrav System Experimental Antigrav System Experimental Antigrav System Gravjet Array Gravjet Array Concept Combat Aerolev Unit Concept Combat Aerolev Unit Concept Combat Aerolev Unit > --- UTILITY ---------- Concept Thermoelectric Network Concept Antigrav Storage Unit Concept Cloak Mesh Concept Cloak Mesh > --- WEAPON ----------- Cooled Directed Potential Cannon Concept Deflector Sword Concept Deflector Sword Experimental Jetlance Experimental Jetlance Experimental Jetlance > --- INVENTORY -------- Concept Zero-point Core Concept Zero-point Core Concept Combat Aerolev Unit Concept Combat Aerolev Unit Concept Thermoelectric Network Concept Chromion Battery V4-D3R's Forcewell Concept NT7 Matterbank Concept Weapon Articulator Advanced Weapon Cycler Femtoactuators Concept Core Shell Experimental EM Shield Experimental Force Field High-powered Transdimensional Reconstructor Potential Cannon Concept Plasma Driver Concept Plasma Driver Cooled Directed Potential Cannon Concept EMP Blanket Launcher [Rating: 319] Favorites ----------- Power Quantum Reactor Engine Reinforced Deuterium Engine Power Core Concept Zero-point Core Reactor Quantum Reactor Propulsion Centrium Heavy Treads Treads Centrium Heavy Treads Leg Enhanced Biometal Leg Wheel Overtuned Huge Scrapsphere Hover Unit Concept Combat Aerolev Unit Flight Unit Diametric Drive Utility High-capacity Storage Unit Device Advanced Cooling System Storage High-capacity Storage Unit Processor A0-MCA's Component Scanner Hackware Deep Network Scanner Protection Gun Armor Weapon Thermic Laser Energy Gun Thermic Laser Energy Cannon Subdweller Beam Cannon Ballistic Gun Advanced KE Penetrator Ballistic Cannon Hypercooled Linear Accelerator Launcher Neutron Missile Launcher Special Weapon Junk Cannon Impact Weapon Thunder Hammer Slashing Weapon Concept Deflector Sword Piercing Weapon Experimental Jetlance Special Melee Weapon Improved Datajack Build | -11 -10 -10 -9 -9 -6 -6 -6 -6 -6 -5 -5 -5 -5 -4 -4 -4 -4 -3 -3 -2 -2 -2 -1 -1 -1 ------- Run | Yrd Mat Sub Rec Scr Fac Ext Cet Arc Hub Fac Upp Upp Zhi Pro Fac Arm Lab Res Qua Res Tes Frg Acc Com Ac0 Slots Evolved 18 | . . . . . 8 . . . . 2 . . . . 2 . . 2 . 2 . . 2 . . Power 2 | . . . . . 1 . . . . . . . . . . . . . . 1 . . . . . Propulsion 8 | . . . . . 4 . . . . . . . . . 2 . . 2 . . . . . . . Utility 2 | . . . . . 2 . . . . . . . . . . . . . . . . . . . . Weapon 6 | . . . . . 1 . . . . 2 . . . . . . . . . 1 . . 2 . . Parts Attached 356 | 6 7 11 . 7 18 16 15 8 13 13 3 5 2 9 17 . 5 36 33 6 35 64 1 18 8 Power 57 | 1 . 1 . 1 2 4 1 . 2 1 . . 1 1 4 . . 8 8 1 8 11 . 2 . Engine 9 | 1 . 1 . 1 1 3 . . . . . . . . 1 . . 1 . . . . . . . Core 12 | . . . . . 1 1 . . . 1 . . . 1 2 . . . 1 . . 3 . 2 . Reactor 36 | . . . . . . . 1 . 2 . . . 1 . 1 . . 7 7 1 8 8 . . . Propulsion 88 | 2 2 2 . 1 3 6 3 1 4 2 . 1 . . 3 . . 15 7 1 7 17 1 7 3 Treads 40 | 2 . 2 . 1 2 6 3 1 . 1 . 1 . . . . . 6 7 . 5 2 . 1 . Leg 10 | . . . . . . . . . 4 1 . . . . . . . 2 . 1 2 . . . . Wheel 8 | . 2 . . . 1 . . . . . . . . . 3 . . 2 . . . . . . . Hover 29 | . . . . . . . . . . . . . . . . . . 4 . . . 15 1 6 3 Flight 1 | . . . . . . . . . . . . . . . . . . 1 . . . . . . . Utility 88 | 1 2 2 . 1 6 2 4 6 4 6 . 1 . 1 3 . 2 4 7 2 10 17 . 5 2 Device 53 | . 1 2 . 1 3 1 3 6 3 3 . 1 . . 2 . . 2 3 2 7 9 . 3 1 Storage 13 | 1 1 . . . . . . . 1 . . . . 1 1 . . 1 4 . . 3 . . . Processor 8 | . . . . . 1 . . . . 1 . . . . . . . 1 . . . 3 . 1 1 Hackware 5 | . . . . . 1 1 . . . 2 . . . . . . 1 . . . . . . . . Protection 9 | . . . . . 1 . 1 . . . . . . . . . 1 . . . 3 2 . 1 . Artifact . | . . . . . . . . . . . . . . . . . . . . . . . . . . Weapon 123 | 2 3 6 . 4 7 4 7 1 3 4 3 3 1 7 7 . 3 9 11 2 10 19 . 4 3 Energy Gun 24 | . . . . . 1 1 3 . 1 1 . . . 2 1 . . 6 4 1 3 . . . . Energy Cannon 20 | . . 3 . . . . . . . . 1 . . . 1 . 2 . 1 1 3 4 . 1 3 Ballistic Gun 23 | 2 2 1 . . 2 2 2 1 . . 1 1 . 3 2 . . 1 1 . . 2 . . . Ballistic Cannon 12 | . . . . . . . . . 1 1 . 1 1 . . . . . 2 . 1 2 . 3 . Launcher 14 | . 1 2 . . 3 . . . . . . 1 . 2 2 . . . . . 1 2 . . . Special Weapon 8 | . . . . 1 1 1 1 . . . . . . . . . 1 1 1 . . 1 . . . Impact Weapon 4 | . . . . . . . . . . 1 . . . . 1 . . 1 . . 1 . . . . Slashing Weapon 9 | . . . . 1 . . 1 . . 1 1 . . . . . . . 1 . . 4 . . . Piercing Weapon 6 | . . . . . . . . . . . . . . . . . . . 1 . 1 4 . . . Special Melee Weapon 3 | . . . . 2 . . . . 1 . . . . . . . . . . . . . . . . Unidentified Prototypes 46 | . . . . 2 . . 4 . . . . . 1 1 . 1 3 1 11 . 17 5 . . . Corrupted Parts 9 | . . . . . . . 1 2 . . . . . 1 1 . . . 3 . . . . . 1 System Corruption 62 | . . . . . . . 10 11 . . . . . 5 1 . . . 34 . . . . . 1 Parts Lost 95 | . . 2 . . 1 4 . . 1 1 . . . 5 17 . . 1 11 . 4 16 . 11 21 Power 19 | . . 1 . . . . . . . . . . . . 4 . . 1 4 . 1 4 . 2 2 Propulsion 28 | . . 1 . . . 2 . . . . . . . 1 5 . . . 2 . 1 3 . 4 9 Utility 9 | . . . . . 1 . . . . . . . . . 2 . . . . . 1 1 . 2 2 Weapon 39 | . . . . . . 2 . . 1 1 . . . 4 6 . . . 5 . 1 8 . 3 8 Highest Loss Streak 15 | . . 2 . . 1 2 . . 1 1 . . . 2 15 . . 1 3 . 3 4 . 9 6 To Critical Strikes 5 | . . . . . . 1 . . . 1 . . . . . . . . 1 . 1 1 . . . Average Backups 18 | 2 11 19 19 17 17 18 18 17 18 16 15 15 19 19 19 5 3 12 20 21 20 22 20 18 8 Power . | . 1 . 1 . . . . 1 . . . . . . . . . . 1 1 1 . 2 1 . Propulsion 1 | 1 3 4 4 3 1 . 1 . 1 2 1 1 1 . . . . . . . . 1 2 1 . Utility 7 | . . 3 4 4 5 5 6 7 8 9 9 9 11 11 9 1 . 2 6 7 7 10 10 11 6 Weapon 6 | . 5 8 8 6 6 9 8 7 5 2 2 3 4 3 6 2 1 5 7 7 8 8 5 3 1 Tool/Special . | . . . . . . . . . . . . . . . . . . . . . . . . . . Unused Backups 70 | . 1 6 . 7 . 3 2 1 2 4 1 2 . 3 4 . 1 . 9 1 4 9 . 3 7 Power 5 | . . . . 1 . . . . . . . . . . . . . . . . . 2 . 1 1 Propulsion 9 | . 1 . . 1 . 1 1 . . . . . . . . . . . 1 . . 3 . 1 . Utility 32 | . . 2 . 3 . 2 1 . . 2 1 1 . 3 2 . . . 1 . 3 4 . 1 6 Weapon 19 | . . 3 . 2 . . . 1 2 2 . 1 . . 2 . 1 . 4 1 . . . . . Tool/Special 5 | . . 1 . . . . . . . . . . . . . . . . 3 . 1 . . . . Average Slot Usage (%) 83 | . 97 100 100 90 87 91 86 79 80 92 88 82 82 80 74 . 12 65 75 78 78 75 84 80 64 Engine 4 | . 14 14 14 14 5 4 6 6 5 . . . . . . . . . . . . . . . . Core 2 | . . . . . 2 7 . . . . 5 5 5 10 7 . . . . . . 3 7 10 8 Reactor 5 | . . . . . . . 5 6 6 10 5 5 5 5 5 . . 10 11 15 15 8 7 3 3 Treads 14 | . 18 14 14 15 28 33 24 19 18 5 11 16 17 16 11 . . 11 11 17 19 9 . . . Leg 2 | . . . . . . . . . 2 22 11 . . . . . . . 8 3 3 . . . . Wheel 4 | . 9 13 14 12 4 . . . . . . . . . 6 . . 5 9 8 2 . . . . Hover 3 | . . . . . . . . . . . . . . . . . . 4 . . . 18 30 33 26 Device 8 | . 11 14 14 11 3 5 5 6 10 3 4 2 5 5 6 . 3 4 7 8 9 9 11 7 9 Storage 6 | . 14 14 14 13 5 5 6 6 6 5 5 5 5 5 5 . . 2 4 4 4 4 3 3 . Processor 1 | . . . . . 4 5 5 . . 2 5 5 5 5 4 . . . . . . 1 . . 1 Protection 3 | . . . . . 4 5 6 12 8 6 5 8 5 5 3 . . . . . 1 1 . 2 1 Energy Gun 4 | . . . . . 2 6 20 18 13 1 2 . . 1 . . . 10 6 4 1 . . . . Energy Cannon 4 | . . 15 14 8 1 . . . . . 3 1 5 3 2 . 1 . 2 2 7 5 3 2 4 Ballistic Gun 5 | . 25 11 14 3 6 11 1 . 3 14 13 17 15 7 11 . . 2 1 . . 1 . . . Ballistic Cannon 1 | . . . . . . . . . . 6 . . 6 8 . . . . 2 8 6 1 . . . Slashing Weapon 1 | . . . . . . . 1 . . 1 1 4 . 1 3 . . . 2 4 2 4 7 6 3 Peak Build Rating 319 | 6 12 15 15 28 59 64 121 121 132 144 142 138 138 140 152 4 54 172 189 211 261 303 319 318 305 Average Rating 129 | 5 8 13 15 19 52 58 101 119 119 140 138 132 135 131 137 3 25 126 171 206 237 255 318 286 188 On Entrance 117 | . 6 12 15 15 21 57 64 121 120 127 142 138 135 136 131 4 2 56 172 185 211 258 295 318 305 Avg Prop Armor Cover (%) 11 | . 11 12 14 14 5 2 . 25 10 8 5 7 7 7 12 . . 14 15 15 6 8 . 2 . Naked Turns 83 | . . . . . . . . . . . . . . . 26 5 52 . . . . . . . . Heaviest Build 240 | 13 52 62 58 65 87 86 104 104 108 117 105 111 116 135 123 . 36 164 191 233 240 224 136 151 165 Greatest Support 430 | 40 40 40 12 40 103 133 240 240 240 160 160 230 160 230 230 3 3 48 40 40 430 430 162 158 143 Greatest Overweight (x) 33 | . 4 5 4 5 5 . . 33 1 1 . . . . 4 . 11 6 8 5 5 2 . 1 1 Average Overweight (x) 1 | . 2 4 4 3 . . . 14 . . . . . . 1 . . 2 3 4 1 . . . . Largest Inventory Capacity 25 | 8 20 20 20 20 20 20 20 20 20 20 20 20 20 20 20 5 5 25 25 25 25 25 25 25 25 Average Capacity 20 | 7 16 20 20 19 20 20 20 20 20 20 20 20 20 20 19 5 5 19 25 25 25 25 25 25 10 Most Carried 25 | 5 20 20 20 20 20 20 20 20 20 20 20 20 20 20 20 5 5 25 25 25 25 25 25 25 24 Average Carried 20 | 2 11 19 20 18 18 19 19 19 19 19 19 18 19 19 19 4 3 15 24 24 24 24 23 22 8 Final Capacity 25 | 8 20 20 20 20 20 20 20 20 20 20 20 20 20 20 5 5 5 25 25 25 25 25 25 25 5 Final Carried 25 | 5 20 20 20 20 20 20 20 20 20 20 19 20 20 20 5 4 5 25 25 25 25 25 23 24 5 Scrap Suit Usage (%) 1 | . . . . . . . . . . . . . . . . . . 1 1 . . . . . . Parts Cannibalized 7 | . . . . . . . . . . . . . . . . . . . 7 . . . . . . Class Distribution -------------------- 37% | Scavenger-Tank 19% | Mutant 9% | Generator-Sprinter 5% | Scavenger-Gunner 4% | Scavenger-Mutant 4% | Generator-Tank 3% | Trapper-Tank Dominant Class ---------------- Mutant | -10/Materials Mutant | -10/Subcaves Mutant | -9/Recycling Mutant | -9/Scraptown Derelict-Gunner | -6/Factory Scavenger-Gunner | -6/Extension Scavenger-Tank | -6/Cetus Scavenger-Tank | -6/Archives Scavenger-Tank | -6/Hub_04(d) Scavenger-Tank | -5/Factory Scavenger-Tank | -5/Upper Caves Scavenger-Tank | -5/Upper Caves Scavenger-Tank | -5/Zhirov Trapper-Tank | -4/Proximity Caves Scavenger-Tank | -4/Factory Scavenger-Tank | -4/Armory Hacker-Mutant | -4/Lab Scavenger-Scrapper | -3/Research Scavenger-Gunner | -3/Quarantine Scavenger-Tank | -2/Research Generator-Tank | -2/Testing Generator-Sprinter | -2/Protoforge Generator-Sprinter | -1/Access Generator-Sprinter | -1/Command Generator-Mutant | -1/Access_0 Resources | -11 -10 -10 -9 -9 -6 -6 -6 -6 -6 -5 -5 -5 -5 -4 -4 -4 -4 -3 -3 -2 -2 -2 -1 -1 -1 ----------- Run | Yrd Mat Sub Rec Scr Fac Ext Cet Arc Hub Fac Upp Upp Zhi Pro Fac Arm Lab Res Qua Res Tes Frg Acc Com Ac0 Matter Collected 15155 | 252 156 618 . 348 479 866 247 160 1126 1675 70 410 . 1344 872 . . 480 1383 306 1049 2553 35 655 71 Remotely . | . . . . . . . . . . . . . . . . . . . . . . . . . . Salvage Created 33237 | 14 207 534 . . 661 1088 157 434 1811 2618 47 511 . 1381 2659 . . 1077 2102 433 4221 4451 246 8383 202 Parts 1457 | 4 24 40 . . 33 57 19 35 67 104 . 23 . 50 91 . . 42 143 15 178 210 7 307 8 Haulers Intercepted 7 | . 1 . . . . . . . . 2 . . . . 1 . . 1 1 . . . 1 . . Recyclers Shooed 12 | . . . . . 1 3 . . . 4 . . . . 3 . . 1 . . . . . . . Parts Field Recycled 1 | . . . . 1 . . . . . . . . . . . . . . . . . . . . . Retrieved Matter 34 | . . . . 34 . . . . . . . . . . . . . . . . . . . . . Parts Self-Destructed 78 | . . 7 . . . . . . . . . 33 . 38 . . . . . . . . . . . Prevented 21 | . . . . . . . . . . . . 7 . 14 . . . . . . . . . . . Parts Restored 12 | . . . . . . . . . . . . . . . . . . . . . . 12 . . . Faulty 12 | . . . . . . . . . . . . . . . . . . . . . . 12 . . . Kills | -11 -10 -10 -9 -9 -6 -6 -6 -6 -6 -5 -5 -5 -5 -4 -4 -4 -4 -3 -3 -2 -2 -2 -1 -1 -1 ------- Run | Yrd Mat Sub Rec Scr Fac Ext Cet Arc Hub Fac Upp Upp Zhi Pro Fac Arm Lab Res Qua Res Tes Frg Acc Com Ac0 Combat Hostiles Destroyed 415 | . 9 15 . . 9 15 1 1 27 31 . 9 . 18 23 . . 13 24 7 54 68 . 88 3 Melee 50 | . . . . . . . . . 1 1 . . . 2 3 . . . 4 . 12 17 . 10 . Guns 97 | . 6 5 . . 5 13 . 1 15 30 . 2 . 3 5 . . 4 4 2 1 1 . . . Cannons 83 | . . 7 . . . . . . 2 . . 2 . 12 1 . . 1 1 1 28 14 . 13 1 AOE 101 | . 3 1 . . 4 . . . . . . 4 . . 5 . . 5 1 4 5 18 . 50 1 Classes Destroyed 34 | 1 5 4 . . 3 3 . . 4 1 . 2 . 1 . . . . . . 2 5 . 3 . Worker 26 | . 1 . . . . . . . 5 1 . . . . 7 . . 1 1 . 5 4 . 1 . Builder 16 | . 1 . . . 1 2 . . . 1 . . . . 4 . . . . . 5 2 . . . Tunneler 2 | 1 . . . . . . . . . . . . . . 1 . . . . . . . . . . Hauler 7 | . 1 . . . . . . . . 2 . . . . 1 . . 1 1 . . . 1 . . Recycler 14 | . . . . . 1 1 . . . 3 . . . . 4 . . 1 1 1 1 . 1 . . Minesweeper 1 | . . . . . . . . . . . . 1 . . . . . . . . . . . . . Mechanic 1 | . . . . . . . . . . . . . . . . . . . . . . . . 1 . Operator 15 | . . . . . . 1 . 9 . 1 . . . . . . . . 1 . 2 . . 1 . Drone 12 | . . . . . . . . . . . . . . . . . . . . . . 12 . . . Turret 1 | . . 1 . . . . . . . . . . . . . . . . . . . . . . . Watcher 13 | . 1 . . . . . 1 . 1 . . . . . 3 . . . 1 1 1 . . 4 . Swarmer 52 | . 9 3 . . . 2 . . . 1 . 4 . 4 . . . 5 . 4 5 . . 15 . Saboteur 2 | . . . . . . . . . 1 . . . . . . . . . . . . . . 1 . Grunt 107 | . . 2 . . 6 6 . . 12 14 . 3 . 4 13 . . 2 3 . 17 3 . 22 . Brawler 7 | . . . . . . . . . . 1 . . . 1 . . . 1 . . 2 1 . 1 . Duelist 5 | . . . . . . . . . 1 1 . . . 1 1 . . . . . 1 . . . . Protector 5 | . . . . . . . . . 1 . . . . 1 . . . . . . . 2 . 1 . Researcher 5 | . . . . . . . . . . . . . . . . . . . . . 1 4 . . . Sentry 41 | . . . . . . 6 . 1 4 3 . . . 2 . . . 1 2 3 3 13 . 3 . Demolisher 7 | . . . . . . . . . . . . . . 5 . . . 1 . . . . . 1 . Specialist 3 | . . . . . . . . . 2 . . . . . . . . . . . . 1 . . . Hunter 34 | . . . . . 1 . . . 1 3 . 2 . . 6 . . . 2 . 5 8 . 6 . Programmer 67 | . . . . . 2 . . . 2 8 . . . 1 3 . . 1 6 . 19 2 . 23 . Heavy 2 | . . . . . . . . . . . . . . . . . . . . . . . . 2 . Behemoth 5 | . . . . . . 1 . . . . . . . . . . . 2 . . . . . 2 . Cetus Guard 1 | . . . . . . . 1 . . . . . . . . . . . . . . . . . . Quarantine Guard 11 | . . . . . . . . . . . . . . . . . . . 11 . . . . . . M Guard 2 | . . . . . . . . . . . . . . . . . . . . . . . . 2 . Enhanced Grunt 2 | . . . . . . . . . . . . . . . . . . . . . . . . . 2 Lightning 3 | . . . . . . . . . 3 . . . . . . . . . . . . . . . . Hotshot 3 | . . . . . . . . . . . . . . . . . . . . . . 3 . . . Decapitator 9 | . . . . . . . . . . . . . . . . . . . . . . 9 . . . Immortal 5 | . . . . . . . . . . . . . . . . . . . . . . 5 . . . Combat Programmer 2 | . . . . . . . . . . . . . . . . . . . . . . . . 2 . Striker 3 | . . . . . . . . . . . . . . . . . . . . . . . . 3 . Executioner 4 | . . . . . . . . . . . . . . . . . . . . . . 2 . 2 . Alpha 7 4 | . . . . . . . . . . . . . . . . . . . . . . 4 . . . Fortress 1 | . . . . . . . . . . . . . . . . . . . . . 1 . . . . V-Series 3 | . . . . . . . . . . . . . . . . . . . . . . 3 . . . Artisan 1 | . . 1 . . . . . . . . . . . . . . . . . . . . . . . Subdweller 10 | . . 10 . . . . . . . . . . . . . . . . . . . . . . . Scrapoid 3 | . . . . . . . . . . . . 1 . . 2 . . . . . . . . . . Thug 1 | . . . . . . . . 1 . . . . . . . . . . . . . . . . . Best Kill Streak 55 | 1 3 4 . . 3 5 2 2 10 7 . 2 . 4 14 . . 4 7 4 13 16 1 55 2 Combat Bots Only 55 | . 3 4 . . 3 5 1 1 8 6 . 2 . 4 8 . . 4 5 4 8 12 . 55 2 Max Kills in Single Turn 10 | 1 2 1 . . 1 2 1 1 2 2 . 2 . 2 3 . . 3 2 4 5 3 1 10 1 Gunslinging 1 | . 1 . . . . . . . . 1 . . . . . . . . . . . . . . . Exploded 10 | . 2 1 . . 1 . . . . . . 1 . . 2 . . 3 1 4 5 2 . 10 1 Melee 2 | . . . . . . . . . 1 1 . . . 1 1 . . . 1 . 1 2 . 1 . Uniques/NPCs Destroyed 6 | . . . . . . . 1 . . . . . . . . . . 1 . . 1 . . 2 1 A7 (-6/Cetus) Revision 17++ (-3/Research) V4-D3R (-2/Testing) MAIN.C Shell (-1/Command) MAIN.C (-1/Command) A8 (-1/Access_0) Combat | -11 -10 -10 -9 -9 -6 -6 -6 -6 -6 -5 -5 -5 -5 -4 -4 -4 -4 -3 -3 -2 -2 -2 -1 -1 -1 -------- Run | Yrd Mat Sub Rec Scr Fac Ext Cet Arc Hub Fac Upp Upp Zhi Pro Fac Arm Lab Res Qua Res Tes Frg Acc Com Ac0 Hostile Shots Fired 2985 | . 26 61 . . 53 184 27 . 221 151 . 42 . 125 371 . . 71 231 34 390 415 . 252 331 Missed 948 | . 5 15 . . 18 78 11 . 67 46 . 13 . 33 143 . . 18 60 12 85 99 . 103 142 Deflected 8 | . . . . . . . . . . . . . . . . . . . . . . 1 . 2 5 Hits 2037 | . 21 46 . . 35 106 16 . 154 105 . 29 . 92 228 . . 53 171 22 305 316 . 149 189 Melee 74 | . . . . . . . . . 2 1 . . . 2 8 . . . . . 12 37 . 1 11 Projectile 1963 | . 21 46 . . 35 106 16 . 152 104 . 29 . 90 220 . . 53 171 22 293 279 . 148 178 AOE 32 | . . 2 . . . . . . 1 . . . . 8 3 . . 1 . . 9 7 . 1 . Critical Strikes 133 | . . . . . 2 1 3 . 9 5 . 2 . 4 5 . . 2 9 . 28 45 . 12 6 Actively Blocked 37 | . . . . . . . . . . . . . . . . . . . . . 11 26 . . . Part Disruptions 12 | . . . . . . . . . . . . . . . . . . . 1 . 2 . . 5 4 Damage Taken 44169 | . 203 736 . . 648 659 382 22 2579 1705 . 526 . 2140 5159 . . 1188 4398 418 5431 9158 . 3192 5625 Core 4762 | . 38 176 . . 19 77 39 . 165 154 . 36 . 198 984 . . 40 308 . 311 687 . 259 1271 Absorbed by Shields 5522 | . . . . . . 411 113 21 . . . . . . . . . . . 296 2213 1909 . 559 . Reduced by Siege Mode 525 | . . . . . . . . . 93 . . . . 145 . . . . . . 17 270 . . . Ignored by Resistances 3351 | . . . . . . . . . 192 476 . . . . 179 . . . . . 1280 478 . 444 302 Regen/Repaired (Parts) 5151 | . . . . . . 129 . . . 1822 . . . . . . . . 328 95 1223 1554 . . . Core Remaining (%) 47 | 100 . . . 14 . . . . 64 . . . . 61 . . 13 . 62 . . 16 . . . Volleys Fired 1229 | 3 31 81 . . 41 49 13 3 154 105 . 31 . 89 59 . 4 45 71 19 133 201 5 75 17 Largest 5 | 2 2 2 . . 3 4 4 3 3 4 . 4 . 5 3 . 1 4 3 4 4 3 1 2 5 Hottest 860 | 40 46 160 . . 131 221 305 255 255 153 . 188 . 265 155 . 100 300 169 215 433 720 120 500 860 Shots Fired 2252 | 6 60 120 . . 86 142 28 9 262 290 . 53 . 205 141 . 4 77 121 57 258 210 5 81 37 Gun 1180 | 6 58 50 . . 60 140 22 9 210 277 . 25 . 46 80 . . 56 70 23 27 21 . . . Cannon 862 | . . 62 . . 10 . . . 7 13 . 14 . 131 39 . 4 17 45 32 224 163 5 59 37 Launcher 118 | . 2 8 . . 16 . 4 . . . . 4 . . 22 . . 2 5 2 6 25 . 22 . Special 92 | . . . . . . 2 2 . 45 . . 10 . 28 . . . 2 1 . 1 1 . . . Kinetic 956 | 6 58 54 . . 40 89 4 . 66 285 . 25 . 119 74 . . 12 12 28 46 36 . . 2 Thermal 876 | . . 62 . . 30 51 16 9 183 5 . 10 . 38 45 . 4 17 7 13 169 118 5 59 35 Explosive 27 | . 2 4 . . 2 . . . . . . 4 . . . . . 2 5 2 1 5 . . . Electromagnetic 371 | . . . . . 14 . 6 . . . . 14 . 48 22 . . 44 96 14 41 50 . 22 . Impact 13 | . . . . . . . . . 13 . . . . . . . . . . . . . . . . Robot Hit Streak 21 | 3 5 11 . . 8 15 11 9 13 20 . 8 . 21 16 . . 12 15 9 15 17 . 12 17 Robot Miss Streak 7 | 1 2 2 . . 2 6 1 4 7 4 . 4 . 5 7 . . 3 3 2 3 2 . 2 2 Penetration Max 2 | . . . . . . 1 . . 1 1 . 1 . 1 1 . . 2 . . . 2 . 1 . Secondary Targets 19 | . 2 . . . 1 8 . . 4 4 . . . . . . . . . . . . . . . Max Gunslinging Chain 2 | . 1 . . . 1 1 . . 1 2 . . . . . . . . . . . . . . . Shots Hit Robots 1683 | 4 37 48 . 3 49 100 31 17 175 173 2 25 . 166 92 . . 48 101 37 202 196 4 143 30 Core Hits 968 | 1 15 20 . . 25 47 13 11 79 83 . 21 . 70 70 . . 27 57 17 97 148 1 156 10 Critical Kills 61 | . . 2 . . 1 1 . . 5 17 . . . 1 3 . . 4 2 . 3 10 . 11 1 Critical Parts Destroyed 35 | . . . . . . 1 . . 8 18 . 3 . . 3 . . 1 . . . 1 . . . Critical Strikes 235 | . . 2 . . 4 11 3 . 38 38 . 4 . 14 12 . . 6 5 . 7 37 1 52 1 Burn 39 | . . . . . 3 9 2 . 25 . . . . . . . . . . . . . . . . Meltdown 26 | . . 2 . . . . . . . . . . . . 2 . . 2 . . 2 6 . 11 1 Destroy 70 | . . . . . 1 2 . . 13 38 . 3 . 1 . . . 2 2 . 1 7 . . . Blast 15 | . . . . . . . . . . . . . . 12 . . . . . . 2 1 . . . Corrupt 3 | . . . . . . . . . . . . 1 . . . . . 1 1 . . . . . . Smash 5 | . . . . . . . . . . . . . . . 4 . . 1 . . . . . . . Sever 12 | . . . . . . . 1 . . . . . . 1 6 . . . . . 2 2 . . . Impale 65 | . . . . . . . . . . . . . . . . . . . 2 . . 21 1 41 . Melee Attacks 433 | . . . . 3 1 1 10 14 2 8 3 . . 25 37 . . 1 26 . 60 105 10 124 3 Kinetic 4 | . . . . . . . . . . . . . . . . . . . . . 4 . . . . Impact 16 | . . . . . . . . . . 5 3 . . . 7 . . 1 . . . . . . . Slashing 204 | . . . . . . . 9 14 . . . . . 25 28 . . . 3 . 56 33 4 29 3 Piercing 196 | . . . . . . . . . . . . . . . . . . . 23 . . 72 6 95 . Sneak Attacks 68 | . . . . 3 1 1 10 12 . 4 . . . 3 8 . . 1 . . 7 14 4 . . Combat Hostiles 3 | . . . . . . . . . . . . . . . 2 . . . . . . 1 . . . Follow-up Attacks 53 | . . . . . . . . . . . . . . . 2 . . . . . . 24 2 25 . Martial Strikes 11 | . . . . . . . . . . . . . . . . . . . . . . 11 . . . Damage Inflicted 101288 | 48 646 1192 . . 1390 1810 1188 1234 3722 5544 279 1344 . 6076 5752 . . 2607 3991 1801 12682 18634 434 25799 5115 Guns 18397 | 48 516 491 . . 694 1764 347 90 3208 5222 . 473 . 622 1058 . . 1087 1284 499 449 545 . . . Cannons 31951 | . . 478 . . 134 . . . 148 102 . 418 . 3467 961 . . 781 1140 760 7308 6895 . 5950 3409 Explosions 26841 | . 130 223 . . 562 . 384 . 12 . . 409 . . 2391 . . 675 798 542 1496 5496 . 12065 1658 Melee 23424 | . . . . . . . 457 1144 . 191 279 . . 1808 1324 . . 64 769 . 3424 5698 434 7784 48 Ramming 145 | . . . . . . 46 . . 47 29 . . . . 18 . . . . . 5 . . . . Kinetic 17331 | 48 516 653 . . 398 1077 82 . 1141 5253 . 473 . 2742 964 . . 428 172 718 1285 1305 . . 76 Thermal 39761 | . . 478 . . 546 687 234 90 2330 71 . 44 . 263 1524 . . 832 377 274 6022 7992 . 13006 4991 Explosive 3707 | . 130 61 . . . . . . . . . 409 . . . . . 624 548 521 592 822 . . . Electromagnetic 16795 | . . . . . 446 . 415 . 12 . . 418 . 1263 1922 . . 659 2125 288 1421 2817 . 5009 . Impact 1082 | . . . . . . . . . 192 191 279 . . . 356 . . 64 . . . . . . . Slashing 11641 | . . . . . . . 457 1144 . . . . . 1808 968 . . . . . 3357 2067 126 1666 48 Piercing 10826 | . . . . . . . . . . . . . . . . . . . 769 . . 3631 308 6118 . Highest Corruption 50 | . . . . . 2 3 13 13 6 3 . . . 5 7 7 7 . 44 . 16 50 . 9 2 Average Corruption 12 | . . . . . 1 2 5 5 2 2 . . . 5 1 7 7 . 14 . 13 38 . 6 1 Corruption Purged 36 | . . . . . . . . 24 . 3 . . . . . . . . . . . . . 9 . Corruption Blocked . | . . . . . . . . . . . . . . . . . . . . . . . . . . Effects 481 | . . . . . 4 21 14 6 26 27 . . . . 10 . 12 . 85 . 90 170 . 14 2 Message Errors 117 | . . . . . 2 5 6 3 7 5 . . . . 4 . 4 . 18 . 19 41 . 2 1 Matter Fused 111 | . . . . . . 6 3 2 4 5 . . . . 2 . 6 . 15 . 26 38 . 4 . Heat Flow Errors 53 | . . . . . 1 3 . . 3 4 . . . . . . 1 . 13 . 8 16 . 4 . Energy Discharges 49 | . . . . . . 4 2 . 3 2 . . . . 2 . . . 9 . 11 14 . 2 . Parts Rejected 7 | . . . . . . 1 . . 2 . . . . . . . . . . . 1 2 . . 1 Parts Fused 5 | . . . . . . . . . . 1 . . . . . . . . 2 . 1 1 . . . Data Loss (minor) 57 | . . . . . 1 1 2 1 1 4 . . . . . . . . 9 . 11 26 . 1 . Data Loss (major) 12 | . . . . . . 1 . . . 2 . . . . . . 1 . 1 . 2 4 . 1 . Misfires 23 | . . . . . . . 1 . 4 3 . . . . 2 . . . 8 . 4 1 . . . Alerts 8 | . . . . . . . . . 1 1 . . . . . . . . 3 . 3 . . . . Misdirections 10 | . . . . . . . . . . . . . . . . . . . . . 2 8 . . . Weapon Failures 29 | . . . . . . . . . 1 . . . . . . . . . 7 . 2 19 . . . Overload Shots 45 | . . . . . . . 1 . . . . . . . . . . . . . 17 7 . 7 13 Effects 4 | . . . . . . . 1 . . . . . . . . . . . . . . 2 . . 1 Energy Bleed 2 | . . . . . . . . . . . . . . . . . . . . . . 2 . . . Heat Surge 2 | . . . . . . . 1 . . . . . . . . . . . . . . . . . 1 Overflow Damage 6237 | . . . . . 16 . 33 301 17 . 236 2 . 220 319 . . 43 206 3 865 1284 133 1910 649 Projectiles 1882 | . . . . . . . . . 13 . . 2 . 23 12 . . 41 21 . 449 120 . 640 561 Explosions 1232 | . . . . . 16 . 33 . . . . . . . 36 . . 2 41 3 . 277 . 736 88 Melee 3123 | . . . . . . . . 301 4 . 236 . . 197 271 . . . 144 . 416 887 133 534 . Knockbacks 48 | . . . . . . 1 . . 6 2 . . . 19 1 . . . . . 12 6 . . 1 Impact 5 | . . . . . . 1 . . 2 1 . . . . 1 . . . . . . . . . . Kinetic 39 | . . . . . . . . . 3 1 . . . 18 . . . . . . 10 6 . . 1 Secondary 4 | . . . . . . . . . 1 . . . . 1 . . . . . . 2 . . . . Self-Inflicted Damage 1272 | . 22 38 . . . . . . 25 . . 26 . . 20 . . . 49 136 290 624 . 42 . Shots 38 | . 1 1 . . . . . . 1 . . 1 . . 2 . . . 1 2 9 19 . 1 . Rammed 10 | . . . . . . 2 . . 4 . . . . . 2 . . . . . 1 1 . . . Targets Rammed 14 | . . . . . . 2 . . 5 3 . . . . 2 . . . . . 1 1 . . . Kicked 3 | . . . . . . . . . . 3 . . . . . . . . . . . . . . . Crushed 1 | . . . . . . . . . 1 . . . . . . . . . . . . . . . . Highest Temperature 534 | . 12 195 . . 236 382 350 237 432 381 . 160 . 54 96 . 97 336 438 285 534 232 136 408 183 Average Temperature 100 | . 6 46 . . 88 95 144 140 165 161 . 64 . 12 26 . 65 87 109 144 121 78 52 98 115 Received Heat Transfer 5314 | . . 192 . . 306 197 35 . 864 378 . 135 . 220 1425 . . 223 108 37 430 575 . 81 108 Thermoelectric Energy+ 2328 | . . . . . . . . . . . . . . . . . . . . . . 215 . 798 1315 Effects 20 | . . . . . . 3 . . 2 2 . . . . . . . . . . 7 . . 6 . Shutdowns 6 | . . . . . . 2 . . . 2 . . . . . . . . . . 1 . . 1 . Energy Bleed 5 | . . . . . . 1 . . 1 . . . . . . . . . . . 2 . . 1 . Interference 6 | . . . . . . . . . . . . . . . . . . . . . 3 . . 3 . Short Circuit 1 | . . . . . . . . . . . . . . . . . . . . . . . . 1 . Damage (minor) 1 | . . . . . . . . . 1 . . . . . . . . . . . . . . . . Damage (core) 1 | . . . . . . . . . . . . . . . . . . . . . 1 . . . . Siege Activations 8 | . . . . . . . . . 1 . . . . 3 . . . . . . 1 3 . . . Total Turns 199 | . . . . . . . . . 55 . . . . 52 . . . . . . 22 70 . . . Longest Duration 55 | . . . . . . . . . 55 . . . . 32 . . . . . . 22 33 . . . Martial Activations . | . . . . . . . . . . . . . . . . . . . . . . . . . . Shielding Activations 1 | . . . . . . . . . . . . . . . . . . . . . 1 . . . . Total Turns 15 | . . . . . . . . . . . . . . . . . . . . . 15 . . . . Longest Duration 15 | . . . . . . . . . . . . . . . . . . . . . 15 . . . . Robots Disrupted 4 | . . . . . . . . . . . . . . . . . . . 1 . 2 . . 1 . Combat Hostiles 4 | . . . . . . . . . . . . . . . . . . . 1 . 2 . . 1 . Robots Corrupted 52 | . . . . . . . 2 . 2 . . 1 . 1 8 . . 3 14 . 4 13 . 4 . Combat Hostiles 49 | . . . . . . . 1 . 1 . . 1 . 1 8 . . 2 14 . 4 13 . 4 . Parts Fried 113 | . . . . . 4 . 1 . 5 . . 1 . 9 15 . . 2 35 1 8 23 . 9 . Impact Corruptions 14 | . . . . . . . . . 3 . 6 . . . 5 . . . . . . . . . . Robots Melted 36 | . . 2 . . . 2 . . 8 . . . . . 2 . . 2 . . 2 6 . 11 1 Combat Hostiles 33 | . . 2 . . . 2 . . 8 . . . . . 1 . . 1 . . 2 5 . 11 1 Parts Melted 101 | . . 5 . . 1 7 1 . 31 . . 1 . 1 9 . . 2 3 . 11 9 . 16 4 Heat Transferred 38477 | . . 740 . . 1385 2800 850 200 8725 111 . 105 . 835 1585 . . 679 398 383 4504 5741 . 8041 1395 Parts Sabotaged . | . . . . . . . . . . . . . . . . . . . . . . . . . . Parts Stolen . | . . . . . . . . . . . . . . . . . . . . . . . . . . Parts Stripped 32 | . . . . . . . . . . . . . . . . . . . . . 32 . . . . Power Chain Reactions 17 | . . . . . 1 . . . 1 . . . . . 4 . . 1 1 1 1 2 . 5 . Alert | -11 -10 -10 -9 -9 -6 -6 -6 -6 -6 -5 -5 -5 -5 -4 -4 -4 -4 -3 -3 -2 -2 -2 -1 -1 -1 ------- Run | Yrd Mat Sub Rec Scr Fac Ext Cet Arc Hub Fac Upp Upp Zhi Pro Fac Arm Lab Res Qua Res Tes Frg Acc Com Ac0 Maximum Alert Level 5 | . . . . . . 2 2 1 3 3 . . . . 2 . . 2 3 2 3 5 5 5 . Low Security (%) 31 | 100 100 . 100 . 100 26 . 90 27 . . . . . 51 100 . 50 . . 7 . . . . Level 1 19 | . . . . . . 37 60 9 36 34 . . . . 38 . . 23 20 86 10 . . . . Level 2 24 | . . . . . . 36 39 . 33 64 . . . . 10 . . 26 74 13 35 11 . . . Level 3 5 | . . . . . . . . . 3 1 . . . . . . . . 4 . 46 2 . 3 . Level 4 4 | . . . . . . . . . . . . . . . . . . . . . . 28 76 6 . Level 5 14 | . . . . . . . . . . . . . . . . . . . . . . 58 23 85 . High Security . | . . . . . . . . . . . . . . . . . . . . . . . . 3 . Max Security . | . . . . . . . . . . . . . . . . . . . . . . . . . . Peak Influence 2986 | 5 123 . . . 70 676 444 303 835 782 . . . . 443 196 . 451 708 426 942 2544 1644 2986 . Initial 1526 | . . . . . . 8 373 151 . 403 . . . . . 196 . . 237 253 175 520 1526 1048 . Average 501 | . 57 . . . 19 308 383 37 340 463 . . . . 187 196 . 235 498 304 619 1669 1569 1668 . Influence Increases 17778 | 5 271 310 . . 268 1273 331 252 1841 1317 14 500 . 445 877 . . 935 1100 354 1593 2883 203 2869 137 Destroy 0b10 Robot/C 8440 | . 180 120 . . 180 600 140 80 720 620 . 340 . 380 380 . . 420 480 140 880 1160 . 1620 . Destroy 0b10 Robot/NC 725 | 5 20 . . . 10 50 10 45 65 40 10 5 . 35 110 . . 15 25 10 70 105 10 85 . Destroy Leader 1278 | . 34 10 . . 50 84 . . 186 134 . 40 . 20 90 . . 102 154 42 92 100 2 138 . Allied During Kill 1271 | . . . . . . 433 140 125 214 . 4 115 . 10 66 . . 164 . . . . . . . Successful Hack 670 | . 7 . . . 14 14 . . 40 105 . . . . 43 . . 45 160 12 101 46 59 24 . Select Force Hacks 50 | . . . . . . . . . 50 . . . . . . . . . . . . . . . . Disable Machine 1485 | . . . . . . 15 15 . 195 195 . . . . 30 . . 30 180 . 135 585 15 60 30 Anti-Garrison Action 350 | . . . . . . . . . 200 . . . . . . . . . . . . 150 . . . Destroy Structure 2429 | . 15 . . . 14 17 26 2 141 178 . . . . 128 . . 144 86 135 285 647 102 402 107 Partial Spotted 60 | . . . . . . . . . . . . . . . 15 . . . . . 15 . 15 15 . Lose Combat Pursuer 1020 | . 15 180 . . . 60 . . 30 45 . . . . 15 . . 15 15 15 15 90 . 525 . Influence Decreases 17778 | 5 234 347 . . 250 623 621 630 1016 1364 591 579 122 445 476 205 196 512 1072 492 980 1265 1108 821 3824 Entered New Map 8047 | . . 18 . . . 10 295 227 . 422 289 39 122 . . 205 196 . 186 198 138 406 1018 591 3687 Time Decay 7544 | 5 234 309 . . 240 503 246 403 566 632 302 520 . 395 286 . . 422 626 294 652 699 90 120 . Lost Part 847 | . . 20 . . 10 30 . . 10 10 . . . 30 170 . . 10 110 . 40 160 . 110 137 Lost Ally 440 | . . . . . . 80 80 . 140 . . 20 . 20 20 . . 80 . . . . . . . Purge Threat 900 | . . . . . . . . . 300 300 . . . . . . . . 150 . 150 . . . . Squads Dispatched 74 | . 1 . . . 4 4 . . 11 16 . . . 1 4 . . 4 2 2 9 11 3 2 . Investigation 27 | . 1 . . . 1 2 . . 3 7 . . . . 1 . . 4 . 1 1 4 2 . . Extermination 19 | . . . . . 2 . . . 2 5 . . . . 2 . . . 1 1 4 1 1 . . Reinforcement 21 | . . . . . 1 2 . . 5 2 . . . . 1 . . . . . 3 5 . 2 . Assault 7 | . . . . . . . . . 1 2 . . . 1 . . . . 1 . 1 1 . . . Garrison . | . . . . . . . . . . . . . . . . . . . . . . . . . . Intercept . | . . . . . . . . . . . . . . . . . . . . . . . . . . Searches Triggered . | . . . . . . . . . . . . . . . . . . . . . . . . . . Unchained Authorized 2 | . . . . . . . . . . . . . . . 1 . . . . . 1 . . . . Construction Impeded 6 | . . . . . 1 1 . . 1 . . . . . 1 . . . . . 1 1 . . . Haulers Reinforced 1 | . . . . . . . . . . 1 . . . . . . . . . . . . . . . Active Scanning Responses . | . . . . . . . . . . . . . . . . . . . . . . . . . . Cargo Convoy Interrupts 1 | . . . . . 1 . . . . . . . . . . . . . . . . . . . . Stealth | -11 -10 -10 -9 -9 -6 -6 -6 -6 -6 -5 -5 -5 -5 -4 -4 -4 -4 -3 -3 -2 -2 -2 -1 -1 -1 --------- Run | Yrd Mat Sub Rec Scr Fac Ext Cet Arc Hub Fac Upp Upp Zhi Pro Fac Arm Lab Res Qua Res Tes Frg Acc Com Ac0 Distress Signals 64 | . 1 . . . 1 3 2 . 4 2 . . . 15 . . . 5 . . . 13 . 18 . Communications Jammed 10 | . . . . . . . . . . . . . . . 10 . . . . . . . . . . Distress Signals 10 | . . . . . . . . . . . . . . . 10 . . . . . . . . . . Times Spotted 624 | . 15 17 . . 9 34 9 9 47 46 . 18 . 26 76 2 . 25 26 9 70 85 . 81 20 Peak Tracking Total 68 | . 5 3 . . 3 6 5 1 9 6 . 5 . 6 27 3 . 4 5 5 6 8 . 68 17 Tactical Retreats 46 | . 1 4 . . . 4 . . 2 3 . . . . 9 . . 1 1 1 2 6 . 10 2 Traps | -11 -10 -10 -9 -9 -6 -6 -6 -6 -6 -5 -5 -5 -5 -4 -4 -4 -4 -3 -3 -2 -2 -2 -1 -1 -1 ------- Run | Yrd Mat Sub Rec Scr Fac Ext Cet Arc Hub Fac Upp Upp Zhi Pro Fac Arm Lab Res Qua Res Tes Frg Acc Com Ac0 Traps Triggered 27 | . . . . . 2 . . . 1 3 . . . . 2 . . 3 2 . 1 12 . 1 . Indirectly 4 | . . . . . 2 . . . . . . . . . 2 . . . . . . . . . . Trap Hack Attempts 48 | . . . . . . . . . . 48 . . . . . . . . . . . . . . . Triggered . | . . . . . . . . . . . . . . . . . . . . . . . . . . Disarmed . | . . . . . . . . . . . . . . . . . . . . . . . . . . Reprogrammed 7 | . . . . . . . . . . 7 . . . . . . . . . . . . . . . Reused 2 | . . . . . . . . . . . . . . . 2 . . . . . . . . . . Traps Extracted 7 | . . . . . . . . . . 7 . . . . . . . . . . . . . . . Installed 5 | . . . . . . . . . . . . . . . 5 . . . . . . . . . . Triggered . | . . . . . . . . . . . . . . . . . . . . . . . . . . Most Traps Carried 7 | . . . . . . . . . . 7 7 7 7 7 7 . . . . . . . . . . Machines | -11 -10 -10 -9 -9 -6 -6 -6 -6 -6 -5 -5 -5 -5 -4 -4 -4 -4 -3 -3 -2 -2 -2 -1 -1 -1 ---------- Run | Yrd Mat Sub Rec Scr Fac Ext Cet Arc Hub Fac Upp Upp Zhi Pro Fac Arm Lab Res Qua Res Tes Frg Acc Com Ac0 Machines Disabled 123 | . . 4 . . . 1 1 . 13 13 . . . 3 2 . 1 3 12 . 10 53 1 4 2 Max in Single Turn 10 | . . 3 . . . . 1 . 10 1 . . . 1 1 . 1 1 2 . 1 9 1 1 1 Garrison Access 8 | . . . . . . . . . 2 1 . . . . 1 . . 1 1 . 1 1 . . . Network Hub 4 | . . . . . . . . . 4 . . . . . . . . . . . . . . . . Machines Repaired . | . . . . . . . . . . . . . . . . . . . . . . . . . . Machines Dismantled . | . . . . . . . . . . . . . . . . . . . . . . . . . . Machines Sabotaged 1 | . . . . . . . . . 1 . . . . . . . . . . . . . . . . Overloaded Fab Kills . | . . . . . . . . . . . . . . . . . . . . . . . . . . Hacking | -11 -10 -10 -9 -9 -6 -6 -6 -6 -6 -5 -5 -5 -5 -4 -4 -4 -4 -3 -3 -2 -2 -2 -1 -1 -1 --------- Run | Yrd Mat Sub Rec Scr Fac Ext Cet Arc Hub Fac Upp Upp Zhi Pro Fac Arm Lab Res Qua Res Tes Frg Acc Com Ac0 Machines Accessed 104 | . 2 1 1 4 3 10 . . 12 14 2 2 4 . 6 . . 4 12 2 8 7 7 3 . Terminals 56 | . 2 . 1 . 2 7 . . 10 4 . 1 . . 3 . . . 8 1 5 3 6 3 . Fabricators 2 | . . . . . . . . . . . . . . . . . . 1 . . 1 . . . . Repair Stations 6 | . . . . . . 1 . . . 3 . . . . . . . . 2 . . . . . . Recycling Units 14 | . . . . . 1 2 . . . 4 . . . . 1 . . 1 . 1 . 3 1 . . Scanalyzers 7 | . . . . . . . . . . 2 . . . . 1 . . 1 1 . 1 1 . . . Garrison Access 7 | . . . . . . . . . 2 1 . . . . 1 . . 1 1 . 1 . . . . Total Hacks 391 | . 6 1 2 24 5 17 . . 28 74 2 2 17 . 25 . . 16 69 9 41 25 22 6 . Successful 193 | . 1 1 1 24 3 12 . . 11 34 2 2 17 . 11 . . 9 29 4 12 13 5 2 . Failed 197 | . 4 . 1 . 2 5 . . 17 40 . . . . 14 . . 7 40 5 29 12 17 4 . Catastrophic 37 | . 1 . . . . . . . 5 9 . . . . 3 . . . 5 1 4 3 6 . . Database Lockouts 1 | . 1 . . . . . . . . . . . . . . . . . . . . . . . . Manual 151 | . 7 . 2 . 3 8 1 . 20 18 . . . . 10 . . 3 25 8 19 16 10 1 . Terminals 202 | . 6 . 2 . 3 12 . . 25 21 . 1 . . 10 . . . 50 7 25 17 17 6 . Fabricators 10 | . . . . . . . . . . . . . . . . . . 5 . . 5 . . . . Repair Stations 42 | . . . . . . 3 . . . 27 . . . . . . . . 12 . . . . . . Recycling Units 28 | . . . . . 2 2 . . . 6 . . . . 2 . . 3 . 2 . 6 5 . . Scanalyzers 46 | . . . . . . . . . . 17 . . . . 9 . . 6 5 . 7 2 . . . Garrison Access 18 | . . . . . . . . . 3 3 . . . . 4 . . 2 2 . 4 . . . . Terminal Hacks 87 | . 1 1 . 24 2 5 . . 5 6 2 2 17 . 2 . . . 8 . 3 5 3 1 . Record 30 | . . . . 23 . . . . . . 1 1 5 . . . . . . . . . . . . Part Schematic 6 | . 1 . . . 1 . . . . . . . 4 . . . . . . . . . . . . Robot Analysis 4 | . . . . . . . . . . . . . 4 . . . . . . . . . . . . Prototype ID Bank 6 | . . . . . . . . . . . . . 4 . . . . . 1 . . 1 . . . Open Door 12 | . . . . 1 1 4 . . . . 1 1 . . . . . . . . . . 3 1 . Open DSF 1 | . . . . . . . . . . . . . . . 1 . . . . . . . . . . Level Access Points 1 | . . . . . . . . . . . . . . . . . . . 1 . . . . . . Branch Access Points 1 | . . . . . . . . . . 1 . . . . . . . . . . . . . . . Machine Index 1 | . . . . . . . . . . . . . . . . . . . 1 . . . . . . Unreport Threat 6 | . . . . . . . . . 2 2 . . . . . . . . 1 . 1 . . . . Locate Traps 6 | . . . . . . 1 . . 1 2 . . . . 1 . . . . . . 1 . . . Recall Investigation 2 | . . . . . . . . . . 1 . . . . . . . . . . 1 . . . . Hauler Manifests 1 | . . . . . . . . . . . . . . . . . . . 1 . . . . . . Registered Components 1 | . . . . . . . . . . . . . . . . . . . 1 . . . . . . Registered Prototypes 1 | . . . . . . . . . . . . . . . . . . . 1 . . . . . . Zone Layout 6 | . . . . . . . . . 2 . . . . . . . . . 1 . . 3 . . . Proto ID Catalog 1 | . . 1 . . . . . . . . . . . . . . . . . . . . . . . Protovariant Controls 1 | . . . . . . . . . . . . . . . . . . . . . 1 . . . . Fabricator Hacks 5 | . . . . . . . . . . . . . . . . . . 3 . . 2 . . . . Network Status 1 | . . . . . . . . . . . . . . . . . . 1 . . . . . . . Load Schematic 2 | . . . . . . . . . . . . . . . . . . 1 . . 1 . . . . Build 2 | . . . . . . . . . . . . . . . . . . 1 . . 1 . . . . Repair Station Hacks 21 | . . . . . . 2 . . . 14 . . . . . . . . 5 . . . . . . Scan Component 12 | . . . . . . 1 . . . 8 . . . . . . . . 3 . . . . . . Repair 9 | . . . . . . 1 . . . 6 . . . . . . . . 2 . . . . . . Recycling Unit Hacks 1 | . . . . . . . . . . . . . . . . . . . . 1 . . . . . Report Inventory 1 | . . . . . . . . . . . . . . . . . . . . 1 . . . . . Scanalyzer 21 | . . . . . . . . . . 7 . . . . 4 . . 4 3 . 3 . . . . Insert Component 7 | . . . . . . . . . . 4 . . . . 1 . . 1 1 . . . . . . Analyze 5 | . . . . . . . . . . 3 . . . . 1 . . . 1 . . . . . . Retrieve Study 9 | . . . . . . . . . . . . . . . 2 . . 3 1 . 3 . . . . Garrison Access Hacks 6 | . . . . . . . . . 1 1 . . . . 1 . . 1 1 . 1 . . . . Seal Access 6 | . . . . . . . . . 1 1 . . . . 1 . . 1 1 . 1 . . . . Unauthorized Hacks 51 | . . . 1 . 1 5 . . 5 6 . . . . 4 . . 1 12 3 3 8 1 1 . Terminals 35 | . . . 1 . . 3 . . 4 2 . . . . 3 . . . 11 2 2 5 1 1 . Track 8 | . . . . . . . . . 1 . . . . . . . . . 3 1 1 2 . . . Botnet 14 | . . . . . . 2 . . 2 1 . . . . 1 . . . 2 1 1 2 1 1 . Operators 3 | . . . . . . . . . . . . . . . 1 . . . 1 . . 1 . . . Skim 9 | . . . 1 . . 1 . . . 1 . . . . 1 . . . 5 . . . . . . Sabotage 1 | . . . . . . . . . 1 . . . . . . . . . . . . . . . . Fabricators . | . . . . . . . . . . . . . . . . . . . . . . . . . . Repair Stations . | . . . . . . . . . . . . . . . . . . . . . . . . . . Recycling Units 13 | . . . . . 1 2 . . . 4 . . . . 1 . . 1 . 1 . 3 . . . Fedlink 10 | . . . . . 1 2 . . . 3 . . . . . . . . . 1 . 3 . . . Scrapoids 3 | . . . . . . . . . . 1 . . . . 1 . . 1 . . . . . . . Scanalyzers 2 | . . . . . . . . . . . . . . . . . . . 1 . 1 . . . . Researchers 2 | . . . . . . . . . . . . . . . . . . . 1 . 1 . . . . Garrison Access 1 | . . . . . . . . . 1 . . . . . . . . . . . . . . . . Jam 1 | . . . . . . . . . 1 . . . . . . . . . . . . . . . . Data Cores Recovered 2 | . . . . . . . . . . . . . . . . . . . . . 2 . . . . Used 1 | . . . . . . . . . . . . . . . . . . . . . 1 . . . . Hacking Detections 54 | . 2 . 1 . 2 3 . . 9 9 . . . . 4 . . 3 6 1 6 3 4 1 . Full Trace Events 7 | . 1 . . . . . . . . 3 . . . . . . . 1 . . 1 . 1 . . Feedback Events 1 | . . . . . . . . . . 1 . . . . . . . . . . . . . . . Corruption 1 | . . . . . . . . . . 1 . . . . . . . . . . . . . . . Feedback Blocked . | . . . . . . . . . . . . . . . . . . . . . . . . . . Robot Schematics Acquired 3 | . . . . . . . . . . . . . . . . . . . . . . 3 . . . Robots Built . | . . . . . . . . . . . . . . . . . . . . . . . . . . Authchips . | . . . . . . . . . . . . . . . . . . . . . . . . . . Time . | . . . . . . . . . . . . . . . . . . . . . . . . . . Total Robot Build Rating . | . . . . . . . . . . . . . . . . . . . . . . . . . . Part Schematics Acquired 16 | . 1 . . . 1 . . . . 2 . . 4 . 1 . . . 1 . . 6 . . . Parts Built 3 | . . . . . . . . . . . . . . . . . . 1 . . 2 . . . . Authchips . | . . . . . . . . . . . . . . . . . . . . . . . . . . Time 72 | . . . . . . . . . . . . . . . . . . 25 . . 47 . . . . Total Part Build Rating 11 | . . . . . . . . . . . . . . . . . . 1 . . 10 . . . . Part Studies Acquired 9 | . . . . . . . . . . . . . . . 2 . . 3 1 . 3 . . . . Parts Repaired 9 | . . . . . . 1 . . . 6 . . . . . . . . 2 . . . . . . Time 609 | . . . . . . 32 . . . 499 . . . . . . . . 78 . . . . . . Parts Recycled . | . . . . . . . . . . . . . . . . . . . . . . . . . . Recycled Matter . | . . . . . . . . . . . . . . . . . . . . . . . . . . Retrieved Matter . | . . . . . . . . . . . . . . . . . . . . . . . . . . Retrieved Components . | . . . . . . . . . . . . . . . . . . . . . . . . . . Parts Scanalyzed 5 | . . . . . . . . . . 3 . . . . 1 . . . 1 . . . . . . Part Schematics Acquired 4 | . . . . . . . . . . 2 . . . . 1 . . . 1 . . . . . . Parts Damaged 3 | . . . . . . . . . . 2 . . . . . . . . 1 . . . . . . Bothacking | -11 -10 -10 -9 -9 -6 -6 -6 -6 -6 -5 -5 -5 -5 -4 -4 -4 -4 -3 -3 -2 -2 -2 -1 -1 -1 ------------ Run | Yrd Mat Sub Rec Scr Fac Ext Cet Arc Hub Fac Upp Upp Zhi Pro Fac Arm Lab Res Qua Res Tes Frg Acc Com Ac0 Used RIF Installer . | . . . . . . . . . . . . . . . . . . . . . . . . . . Robots Hacked 14 | . . . . 3 1 1 1 . 2 3 . . . . 2 . . 1 . . . . . . . Non-combat 7 | . . . . 1 1 . . . . 3 . . . . 2 . . . . . . . . . . Combat 7 | . . . . 2 . 1 1 . 2 . . . . . . . . 1 . . . . . . . Robot Hacks Applied 14 | . . . . 3 1 1 1 . 2 3 . . . . 2 . . 1 . . . . . . . parse_system 8 | . . . . 3 . 1 1 . 2 . . . . . . . . 1 . . . . . . . find_chute 2 | . . . . . . . . . . 1 . . . . 1 . . . . . . . . . . find_recycling 3 | . . . . . 1 . . . . 1 . . . . 1 . . . . . . . . . . find_station 1 | . . . . . . . . . . 1 . . . . . . . . . . . . . . . Relay Couplers Released 1 | . . . . . . . . . . . . . . . . . . . . . . 1 . . . Machine Destruction 1 | . . . . . . . . . . . . . . . . . . . . . . 1 . . . Fabnet Peak Effective % . | . . . . . . . . . . . . . . . . . . . . . . . . . . Robots Rewired 12 | . . . . . . 11 . . . . . . . 1 . . . . . . . . . . . Allies Hacked . | . . . . . . . . . . . . . . . . . . . . . . . . . . Hacks Repelled . | . . . . . . . . . . . . . . . . . . . . . . . . . . Allies | -11 -10 -10 -9 -9 -6 -6 -6 -6 -6 -5 -5 -5 -5 -4 -4 -4 -4 -3 -3 -2 -2 -2 -1 -1 -1 -------- Run | Yrd Mat Sub Rec Scr Fac Ext Cet Arc Hub Fac Upp Upp Zhi Pro Fac Arm Lab Res Qua Res Tes Frg Acc Com Ac0 Total Allies 37 | . . . . . . 16 5 . . 5 . . . 1 5 . . 5 . . . . . . . Largest Group 13 | . . . . . . 11 13 10 9 5 5 5 2 2 5 . . 5 . . . . . . . Highest-Rated Group 833 | . . . . . . 445 833 621 590 235 235 235 94 94 238 . . 326 . . . . . . . Highest-Rated Ally 159 | . . . . . . 159 159 96 96 47 47 47 47 47 50 . . 67 . . . . . . . Initial UFD Resources 67 | . . . . . 24 34 40 40 40 43 56 56 56 59 59 56 56 58 55 57 67 67 . . . Total Orders 6 | . . . . . . . . . 2 . . . . . 4 . . . . . . . . . . STAY 5 | . . . . . . . . . 2 . . . . . 3 . . . . . . . . . . FOLLOW 1 | . . . . . . . . . . . . . . . 1 . . . . . . . . . . Ally Attacks 431 | . . . . . . 111 51 21 59 3 . 50 . 16 51 . . 69 . . . . . . . Total Damage 11414 | . . . . . . 2852 1609 657 2559 75 . 1002 . 281 898 . . 1481 . . . . . . . Kills 78 | . . . . . . 22 8 3 18 . . 9 . 2 8 . . 8 . . . . . . . Allies Corrupted 1 | . . . . . . . . . . . . . . . . . . 1 . . . . . . . Allies Melted 1 | . . . . . . . . . . . . . . . . . . . . . . 1 . . . Intel | -11 -10 -10 -9 -9 -6 -6 -6 -6 -6 -5 -5 -5 -5 -4 -4 -4 -4 -3 -3 -2 -2 -2 -1 -1 -1 ------- Run | Yrd Mat Sub Rec Scr Fac Ext Cet Arc Hub Fac Upp Upp Zhi Pro Fac Arm Lab Res Qua Res Tes Frg Acc Com Ac0 Active Infowar (turns) 11481 | . 461 4254 116 2407 256 . . . 899 210 648 408 . . 911 . . 134 . . . 437 195 145 . Terrain 1125 | . . 1114 . . . . . . . . . . . . 11 . . . . . . . . . . Structural 7786 | . . 3129 116 1931 256 . . . 899 210 648 408 . . 189 . . . . . . . . . . Seismic 948 | . 461 11 . 476 . . . . . . . . . . . . . . . . . . . . . Machine Analysis 134 | . . . . . . . . . . . . . . . . . . 134 . . . . . . . Cloaking 777 | . . . . . . . . . . . . . . . . . . . . . . 437 195 145 . Jamming 911 | . . . . . . . . . . . . . . . 911 . . . . . . . . . . Robot Analysis Total 4 | . . . . . . . . . . . . . 4 . . . . . . . . . . . . Derelict Logs Recovered 9 | . . 3 . 4 . . . . . . . 1 . 1 . . . . . . . . . . . Drone Launches . | . . . . . . . . . . . . . . . . . . . . . . . . . . Drone Recoveries . | . . . . . . . . . . . . . . . . . . . . . . . . . . Exploration | -11 -10 -10 -9 -9 -6 -6 -6 -6 -6 -5 -5 -5 -5 -4 -4 -4 -4 -3 -3 -2 -2 -2 -1 -1 -1 ------------- Run | Yrd Mat Sub Rec Scr Fac Ext Cet Arc Hub Fac Upp Upp Zhi Pro Fac Arm Lab Res Qua Res Tes Frg Acc Com Ac0 Turns Passed 36295 | 118 557 4254 116 2949 832 1474 534 4191 1876 2210 670 1493 225 1138 1432 5 390 1130 2154 643 2401 2962 195 2041 305 Spaces Moved 21266 | 66 283 1851 78 1841 424 673 260 469 871 1292 403 756 135 474 670 7 340 814 1539 283 1024 2618 579 3070 446 Core 614 | 8 . . . . . . . 204 . . . . . . 50 7 340 5 . . . . . . . Treads 6256 | 58 92 8 . 109 380 673 260 265 736 67 403 756 135 474 334 . . . . . 802 702 . 2 . Legs 1360 | . . . . . . . . . 135 1225 . . . . . . . . . . . . . . . Wheels 6738 | . 191 1843 78 1732 44 . . . . . . . . . 286 . . 520 1539 283 222 . . . . Hover 6215 | . . . . . . . . . . . . . . . . . . 206 . . . 1916 579 3068 446 Flight 83 | . . . . . . . . . . . . . . . . . . 83 . . . . . . . Fastest Speed 25 | 50 145 150 150 90 160 160 160 160 100 100 160 160 160 160 50 50 50 30 100 110 120 25 27 25 28 Average Speed 121 | 146 150 155 150 153 160 160 160 829 150 103 160 160 160 160 132 50 74 94 107 117 138 59 27 26 43 Slowest Speed 1700 | 160 160 240 150 260 260 160 160 1700 170 240 160 160 160 160 160 50 600 168 150 120 150 240 27 240 100 Overloaded Moves . | . . . . . . . . . . . . . . . . . . . . . . . . . . Propulsion Burnouts . | . . . . . . . . . . . . . . . . . . . . . . . . . . Robots Hopped . | . . . . . . . . . . . . . . . . . . . . . . . . . . Potential Cave-ins 18 | . . . . . . . . . . . . . . . . . . . . . 1 17 . . . Cave-ins Triggered 1 | . . . . . . . . . . . . . . . . . . . . . . 1 . . . Teleports 5 | . . . . . . . . . . . . . . . . 1 . . 2 . 1 . . 1 . Exploration Rate (%) 51 | 4 53 90 15 85 10 76 67 90 85 27 62 81 60 54 14 2 93 20 95 9 87 66 16 57 27 Regions Visited 25 Branch Regions 18 Pre-discovered Areas 17 | . . 2 . 9 . 1 . . . . . . 3 1 . . . . 1 . . . . . . Known Exits Taken 10 | . . . . 1 1 . . . 1 1 1 1 . 1 . . 1 . 1 . . 1 . . . Unknown Exits Taken 15 | 1 1 1 1 . . 1 1 1 . . . . 1 . 1 1 . 1 . 1 1 . 1 1 . Scrap Searched 17 | . . 6 . 5 . . . . . . 2 3 . 1 . . . . . . . . . . . Spaces Dug 103 | . . 14 . . 3 . . . 5 7 1 . . 1 2 . . 1 . 1 14 41 9 4 . Terrain Destroyed 1390 | . 12 97 . . 14 . . . 191 74 1 31 . 32 50 . . 49 97 51 94 255 46 250 46 Melee 19 | . . . . . . . . . . 3 1 . . . 2 . . . . . . 4 6 3 . Projectile 386 | . . 20 . . 3 . . . 34 71 . 10 . 32 18 . . 2 8 11 53 95 4 12 13 AOE 985 | . 12 77 . . 11 . . . 157 . . 21 . . 30 . . 47 89 40 41 156 36 235 33 Terrain Rammed . | . . . . . . . . . . . . . . . . . . . . . . . . . . Walls Destroyed . | . . . . . . . . . . . . . . . . . . . . . . . . . . Machines Disabled . | . . . . . . . . . . . . . . . . . . . . . . . . . . Actions | -11 -10 -10 -9 -9 -6 -6 -6 -6 -6 -5 -5 -5 -5 -4 -4 -4 -4 -3 -3 -2 -2 -2 -1 -1 -1 --------- Run | Yrd Mat Sub Rec Scr Fac Ext Cet Arc Hub Fac Upp Upp Zhi Pro Fac Arm Lab Res Qua Res Tes Frg Acc Com Ac0 Total 29192 | 79 363 3100 77 1976 504 972 347 740 1193 1931 422 996 144 672 1036 7 482 1109 1877 553 1675 3723 599 4094 521 Wait 4532 | . 18 1119 . 27 2 63 15 229 91 398 3 179 . 34 204 . 104 147 112 234 321 449 3 767 13 Move 21240 | 65 282 1850 77 1840 423 672 259 468 870 1291 402 755 134 473 669 6 339 813 1538 282 1023 2616 578 3069 446 Hop . | . . . . . . . . . . . . . . . . . . . . . . . . . . Pick Up 360 | 5 19 14 . 58 10 8 7 7 13 18 2 6 1 12 4 . 13 25 26 2 16 63 1 20 10 Fast Attach 246 | 6 . . . 4 2 5 10 5 8 11 2 1 3 8 9 . 5 29 26 6 29 60 1 10 6 Attach 163 | . 2 2 . 6 11 3 2 5 6 8 . 1 . 6 6 1 4 6 10 . 16 40 1 15 12 Detach 52 | . . . . . 2 . . . 3 2 . 1 . . 1 . 2 3 . . 8 21 . 6 3 Swap 321 | . 7 20 . 4 8 17 8 2 23 24 4 15 2 5 31 . . 15 16 3 30 66 . 21 . Drop 413 | . 4 14 . 34 3 13 23 7 18 15 5 7 4 12 11 . 11 25 36 7 38 97 2 16 11 Fire 1229 | 3 31 81 . . 41 49 13 3 154 105 . 31 . 89 59 . 4 45 71 19 133 201 5 75 17 Melee 357 | . . . . 3 1 1 10 14 2 8 3 . . 25 35 . . 1 26 . 60 68 8 89 3 Ram . | . . . . . . . . . . . . . . . . . . . . . . . . . . Kick 3 | . . . . . . . . . . 3 . . . . . . . . . . . . . . . Crush 11 | . . . . . . 2 . . 5 . . . . . 2 . . . . . 1 1 . . . Escape Stasis 62 | . . . . . . . . . . . . . . . . . . . 16 . . 41 . 5 . Rewire 148 | . . . . . . 139 . . . . . . . 8 . . . . . . . . . 1 . Trap 53 | . . . . . . . . . . 48 . . . . 5 . . . . . . . . . . Miscellaneous 2 | . . . . . 1 . . . . . 1 . . . . . . . . . . . . . . Route ------- -11/Scrapyard -10/Materials (discovered 5 exits: [*Mat x2] / [*Min x2] / *Sub) -10/Subcaves (discovered 3 exits: [*Mat x2] / *Rec) -9/Recycling -9/Scraptown (discovered 2 exits: *Fac x2) -6/Factory (discovered 5 exits: *Fac / Low x2 / *Ext x2) -6/Extension (discovered 2 exits: *Fac / *Cet) -6/Cetus (discovered 2 exits: *Fac / [*Arc]) -6/Archives (discovered 3 exits: *Fac / *Hub x2) -6/Hub_04(d) (discovered 3 exits: *Fac x3) -5/Factory (discovered 3 exits: *Fac / *Upp x2) -5/Upper Caves -5/Upper Caves (discovered 2 exits: *Fac / *Zhi) -5/Zhirov -4/Proximity Caves -4/Factory (discovered 4 exits: Res x2 / Upp / [*Arm]) -4/Armory -4/Lab -3/Research (discovered 2 exits: Res / *Qua) -3/Quarantine -2/Research (discovered 3 exits: Acc x2 / *Tes) -2/Testing (discovered 3 exits: *Acc / [*Sec] / *Frg) -2/Protoforge -1/Access (discovered 2 exits: [*Sur] / *Com) -1/Command (discovered 3 exits: [*Sur x2] / [*Ac0]) -1/Access_0 History --------- Turn | Location | Event 3 | -11/Scrapyard | Discovered new exit (range 15) 119 | -11/Scrapyard | Entered Materials 326 | -10/Materials | Build established: Mutant 335 | -10/Materials | Discovered new exit (range 7) 406 | -10/Materials | Discovered new exit (range 11) 444 | -10/Materials | Discovered new exit (range 16) 446 | -10/Materials | Central database locked down 477 | -10/Materials | Discovered new exit (range 16) 596 | -10/Materials | Discovered new exit (range 13) 676 | -10/Materials | Entered Subcaves 796 | -10/Subcaves | Learned location of Zion (-6) 1357 | -10/Subcaves | Visited 4L-MR0's lab 1372 | -10/Subcaves | Found Gun Armor 1636 | -10/Subcaves | A swath of the cavern ceiling suddenly collapsed 2077 | -10/Subcaves | Discovered new exit (range 13) 2163 | -10/Subcaves | Discovered new exit (range 15) 2323 | -10/Subcaves | Shifting Twisted Machinery released Battle Rifle 2323 | -10/Subcaves | Shifting Twisted Machinery released Sub. Shrapnel Launcher 2461 | -10/Subcaves | Build established: Scavenger-Mutant 2652 | -10/Subcaves | Shifting Twisted Machinery released Scrap Shield 2684 | -10/Subcaves | Shifting Twisted Machinery released Riot Gun 3257 | -10/Subcaves | Ambushed by Subdwellers from Twisted Machinery 3263 | -10/Subcaves | Core integrity fell below 50% 3265 | -10/Subcaves | Ambushed by Subdweller buried in earth 3276 | -10/Subcaves | Core integrity fell below 20% 3376 | -10/Subcaves | A swath of the cavern ceiling suddenly collapsed 3543 | -10/Subcaves | Build established: Mutant 4707 | -10/Subcaves | Discovered new exit (range 9) 4930 | -10/Subcaves | Entered Recycling 4977 | -9/Recycling | Scanned before Scraplab entrance 5028 | -9/Recycling | Discovered new exit (range 11) 5032 | -9/Recycling | Entered Scraplab 5046 | -9/Recycling | Entered Scraptown 5280 | -9/Scraptown | Visited Symbiants 5312 | -9/Scraptown | Visited Comm Corps 5322 | -9/Scraptown | Visited SPCMW 5367 | -9/Scraptown | Visited Assassins FH 5394 | -9/Scraptown | Visited Cyclists 5424 | -9/Scraptown | Visited Junk Repository 5496 | -9/Scraptown | Scanned Subdweller tech in exchange for log data 5499 | -9/Scraptown | Learned location of Quarantine (-3) 5502 | -9/Scraptown | Learned location of Extension (-6) 5504 | -9/Scraptown | Learned location of Testing (-2) 5535 | -9/Scraptown | Discovered new exit (range 11) 5649 | -9/Scraptown | Heard Great Nut preacher, LISTEN AND RECITE! 5744 | -9/Scraptown | Visited UFD Registry 5833 | -9/Scraptown | Registered with UFD as "Phasespawn" 5863 | -9/Scraptown | Entered Cyclist Reading Room 5866 | -9/Scraptown | Learned location of Exiles (-9) 5963 | -9/Scraptown | Visited Chapter 10 5986 | -9/Scraptown | Visited DA-N13 Charitable Foundation 5992 | -9/Scraptown | Found DCF Scrap (30 items) 6053 | -9/Scraptown | Delivered Scrap Shield to a Scientist 6152 | -9/Scraptown | Visited Curators Association 6188 | -9/Scraptown | Visited Infowarlord's Domain 6217 | -9/Scraptown | Visited Junk Repository 6236 | -9/Scraptown | Visited Cartography Club 6262 | -9/Scraptown | Visited A0-MCA Data Center 6272 | -9/Scraptown | Given a C+ rating by A0-MCA 6277 | -9/Scraptown | Found A0-MCA's Component Scanner 6311 | -9/Scraptown | Visited Sword Containment 6346 | -9/Scraptown | Visited Junk Cannon Lab 6357 | -9/Scraptown | Found Prototype Special Weapon 6357 | -9/Scraptown | Identified Junk Cannon 6422 | -9/Scraptown | Visited LU-1G1's Boring Crew 6979 | -9/Scraptown | Found Exp. Terrain Scanner 7196 | -9/Scraptown | Found Surveybot 17 Chip 7230 | -9/Scraptown | Learned location of Proximity Caves (-5) 7230 | -9/Scraptown | Learned location of Warlord (-4) 7230 | -9/Scraptown | Learned location of Archives (-6) 7230 | -9/Scraptown | Learned 16 Materials zone layouts 7230 | -9/Scraptown | Learned 16 Research zone layouts 7230 | -9/Scraptown | Learned 4 Access zone layouts 7230 | -9/Scraptown | Learned 8 Access zone layouts 7230 | -9/Scraptown | Learned 4 Storage zone layouts 7230 | -9/Scraptown | Learned 20 Proximity Caves zone layouts 7230 | -9/Scraptown | Learned 24 Proximity Caves zone layouts 7230 | -9/Scraptown | Learned location of 3 exits from Factory 7230 | -9/Scraptown | Learned location of 1 exit from Upper Caves 7230 | -9/Scraptown | Learned location of 3 exits from Upper Caves 7230 | -9/Scraptown | Identified exit to Factory 7257 | -9/Scraptown | Found Deep Structural Scanner 7389 | -9/Scraptown | Found Prototype Slashing Weapon 7408 | -9/Scraptown | Identified Companion Sword 7857 | -9/Scraptown | Met Optimus 7857 | -9/Scraptown | Accepted into 0bPrime 7995 | -9/Scraptown | Entered Factory 7995 | -6/Factory | Evolved 8 slots: Power x1, Propulsion x4, Utility x2, Weapon x1 7996 | -6/Factory | Identified exit to Lower Caves 7997 | -6/Factory | Identified exit to Factory 7997 | -6/Factory | Identified exit to Extension 8004 | -6/Factory | Attached Gun Armor, gained temporary slots: Weapon x2 8492 | -6/Factory | Build established: Derelict-Gunner 8511 | -6/Factory | Loaded intel: 8 recycling unit locations 8758 | -6/Factory | Cargo convoy interrupted 8827 | -6/Factory | Entered Extension 8966 | -6/Extension | Repaired Spk. Treads? 9002 | -6/Extension | Rescued A7 9010 | -6/Extension | Loaded intel: 2 recycling unit locations 9010 | -6/Extension | Learned location of Protoforge (-2) 9045 | -6/Extension | Rescued a captive Derelict 9056 | -6/Extension | Rescued a captive Derelict 9196 | -6/Extension | Build established: Scavenger-Gunner 9467 | -6/Extension | Attached CPS modules to A7 9489 | -6/Extension | Rescued a captive Derelict 9490 | -6/Extension | Rescued a captive Derelict 9885 | -6/Extension | Build established: Commander-Gunner 10036 | -6/Extension | Spotted B-75 Beast 10049 | -6/Extension | Allies destroyed B-75 Beast 10050 | -6/Extension | Spotted B-75 Beast 10058 | -6/Extension | Attached CPS modules to B-75 Beast 10065 | -6/Extension | Destroyed B-75 Beast 10265 | -6/Extension | Discovered exit to Factory (range 16) 10265 | -6/Extension | Discovered new exit (range 16) 10301 | -6/Extension | Entered Cetus 10301 | -6/Cetus | Accompanied by 11 allies (A7) 10306 | -6/Cetus | Acquired a Cetus Manufacturing Module code from A7 10322 | -6/Cetus | Spotted Cetus Guard 10322 | -6/Cetus | Spotted Cetus Guard 10325 | -6/Cetus | Spotted Cetus Guard 10326 | -6/Cetus | Spotted Cetus Guard 10335 | -6/Cetus | Attached CPS modules to Cetus Guard 10336 | -6/Cetus | Allies destroyed Cetus Guard 10337 | -6/Cetus | Attached CPS modules to Cetus Guard 10346 | -6/Cetus | Allies destroyed Cetus Guard 10351 | -6/Cetus | Allies destroyed Cetus Guard 10382 | -6/Cetus | Lost 3 allies 10482 | -6/Cetus | Started Cetus Manufacturing Module 10498 | -6/Cetus | Escorted A7 to Cetus Mainframe 10507 | -6/Cetus | Manufactured an Enhanced Grunt 10532 | -6/Cetus | Manufactured an Enhanced Grunt 10557 | -6/Cetus | Manufactured an Enhanced Grunt 10582 | -6/Cetus | Manufactured an Enhanced Grunt 10607 | -6/Cetus | Manufactured an Enhanced Grunt 10626 | -6/Cetus | Discovered new exit (range 15) 10661 | -6/Cetus | Spotted Cetus Guard 10661 | -6/Cetus | Spotted Cetus Guard 10663 | -6/Cetus | Allies destroyed Cetus Guard 10664 | -6/Cetus | Spotted Cetus Guard 10666 | -6/Cetus | Destroyed Cetus Guard 10668 | -6/Cetus | Spotted Cetus Guard 10670 | -6/Cetus | Allies destroyed Cetus Guard 10679 | -6/Cetus | Allies destroyed Cetus Guard 10688 | -6/Cetus | Discovered exit to Factory (range 15) 10696 | -6/Cetus | Met Revision 17 10707 | -6/Cetus | System corruption reached 10% 10802 | -6/Cetus | Murdered A7 10806 | -6/Cetus | Extracted ID and sensor layout for unrecognized location from A7's data core 10835 | -6/Cetus | Entered Archives 10835 | -6/Archives | Accompanied by 10 allies 10971 | -6/Archives | Discovered exit to Factory (range 16) 10999 | -6/Archives | Discovered new exit (range 14) 11087 | -6/Archives | Discovered new exit (range 14) 11413 | -6/Archives | Build established: Scavenger-Mutant 11727 | -6/Archives | Build established: Scavenger-Tank 15026 | -6/Archives | Entered Hub_04(d) 15026 | -6/Hub_04(d) | Accompanied by 9 allies 15185 | -6/Hub_04(d) | Discovered exit to Factory (range 12) 15336 | -6/Hub_04(d) | Build established: Commander-Tank 15649 | -6/Hub_04(d) | Destroyed 8 combat bots 15727 | -6/Hub_04(d) | Discovered exit to Factory (range 14) 15795 | -6/Hub_04(d) | Build established: Scavenger-Tank 16229 | -6/Hub_04(d) | Discovered exit to Factory (range 12) 16319 | -6/Hub_04(d) | Network Hub disabled 16426 | -6/Hub_04(d) | First assault squad dispatched 16444 | -6/Hub_04(d) | Spotted Lightning 16444 | -6/Hub_04(d) | Spotted Lightning 16444 | -6/Hub_04(d) | Spotted Lightning 16472 | -6/Hub_04(d) | Destroyed Lightning 16551 | -6/Hub_04(d) | Destroyed 7 combat bots 16555 | -6/Hub_04(d) | Network Hub disabled 16685 | -6/Hub_04(d) | Destroyed Lightning 16689 | -6/Hub_04(d) | Found Exp. EM Shield 16693 | -6/Hub_04(d) | Found Exp. Targeting Computer 16726 | -6/Hub_04(d) | Destroyed Lightning 16771 | -6/Hub_04(d) | Found Exp. EM Shield 16844 | -6/Hub_04(d) | Network Hub disabled 16890 | -6/Hub_04(d) | Network Hub disabled 16902 | -6/Hub_04(d) | Entered Factory 16902 | -5/Factory | Evolved 2 slots: Weapon x2 16903 | -5/Factory | Identified exit to Upper Caves 16985 | -5/Factory | Discovered new exit (range 11) 17240 | -5/Factory | Repaired Broken Centrium Heavy Treads? 17336 | -5/Factory | Repaired Broken Adv. KE Penetrator 17395 | -5/Factory | Repaired Centrium Medium Armor Plating? 17493 | -5/Factory | Repaired Centrium Heavy Treads? 17597 | -5/Factory | Loaded intel: 8 recycling unit locations 17638 | -5/Factory | Repaired Centrium Heavy Treads 17786 | -5/Factory | Repaired Adv. KE Penetrator? 18702 | -5/Factory | First assault squad dispatched 19077 | -5/Factory | Scrapoid reinforcements arrived 19112 | -5/Factory | Entered Upper Caves 19112 | -5/Upper Caves | Accompanied by 5 allies 19113 | -5/Upper Caves | Identified exit to Upper Caves 19114 | -5/Upper Caves | UFD Scientist delivered a prototype 19117 | -5/Upper Caves | Found Enh. Scrap Shield 19617 | -5/Upper Caves | Entered a destroyed Warlord outpost 19782 | -5/Upper Caves | Entered another Upper Caves area 19782 | -5/Upper Caves | Accompanied by 5 allies 19783 | -5/Upper Caves | Identified exit to Zhirov 19783 | -5/Upper Caves | Identified exit to Factory 19826 | -5/Upper Caves | Found DCF Scrap (12 items) 19883 | -5/Upper Caves | Learned 8 Factory zone layouts 20299 | -5/Upper Caves | Encountered a Warlord checkpoint 20981 | -5/Upper Caves | Attracted the attention of an 0b10 checkpoint 21275 | -5/Upper Caves | Entered Zhirov 21275 | -5/Zhirov | Accompanied by 2 allies 21275 | -5/Zhirov | Discovered new exit (range 3) 21306 | -5/Zhirov | Met Zhirov 21335 | -5/Zhirov | Learned location of Command (-1) 21349 | -5/Zhirov | Zhirov requested help retrieving the SGEMP Prototype 21374 | -5/Zhirov | Found Alien Artifact 21374 | -5/Zhirov | Identified Integrated Dissipator 21374 | -5/Zhirov | Installed Integrated Dissipator, increased core heat dissipation (+20) 21435 | -5/Zhirov | Found Alien Artifact 21500 | -5/Zhirov | Entered Proximity Caves 21500 | -4/Proximity Caves | Accompanied by 2 allies 21562 | -4/Proximity Caves | Found Alien Artifact 21562 | -4/Proximity Caves | Identified Core Expander 21562 | -4/Proximity Caves | Installed Core Expander, added new Power slot 21589 | -4/Proximity Caves | Attracted the attention of an 0b10 outpost 21728 | -4/Proximity Caves | Build established: Trapper-Tank 22205 | -4/Proximity Caves | Discovered exit to Factory (range 15) 22318 | -4/Proximity Caves | Found Rocket Array 22638 | -4/Proximity Caves | Entered Factory 22638 | -4/Factory | Evolved 2 slots: Propulsion x2 22639 | -4/Factory | Identified exit to Research 22639 | -4/Factory | Identified exit to Upper Caves 22854 | -4/Factory | Identified exit to DSF 22865 | -4/Factory | Spotted B-86 Titan 22876 | -4/Factory | Build established: Scavenger-Tank 23144 | -4/Factory | Scrapoids reinforcements arrived? 23162 | -4/Factory | Unchained authorized (V4-D3R) 23890 | -4/Factory | Spotted V4-D3R 24038 | -4/Factory | Released all parts (6) 24045 | -4/Factory | Destroyed 8 combat bots 24056 | -4/Factory | Core integrity fell below 50% 24061 | -4/Factory | Discovered new exit (range 16) 24065 | -4/Factory | Core integrity fell below 20% 24070 | -4/Factory | Entered Armory 24074 | -4/Armory | Identified Transdimensional Reconstructor 24074 | -4/Armory | Warped through subspace to slip node 24074 | -4/Armory | Discovered new exit (range 1) 24075 | -4/Armory | Lost 15 parts (3p5n2u5w) 24075 | -4/Armory | Entered Lab 24075 | -4/Lab | Discovered exit to Research (range 9) 24081 | -4/Lab | Hidden lab's door opened automatically 24081 | -4/Lab | Sensor layout match revealed 24102 | -4/Lab | Gained access to the hidden lab's interior 24116 | -4/Lab | Unable to decrypt terminal 24121 | -4/Lab | Found Prototype Energy Cannon 24123 | -4/Lab | Found Prototype Energy Cannon 24125 | -4/Lab | Found Med. Regenerative Plating 24127 | -4/Lab | Found Deep Network Scanner 24147 | -4/Lab | Identified Warp Cannon 24155 | -4/Lab | Found Alien Artifact 24155 | -4/Lab | Identified Integrated Mediator 24155 | -4/Lab | Installed Integrated Mediator, increased core attachment efficiency 24179 | -4/Lab | Found Transdimensional Reconstructor 24186 | -4/Lab | Found Alien Artifact 24221 | -4/Lab | Identified Potential Cannon 24384 | -4/Lab | Found Core Expander 24465 | -4/Lab | Entered Research 24465 | -3/Research | Evolved 2 slots: Propulsion x2 24466 | -3/Research | Identified exit to Research 24517 | -3/Research | Scrapoids reinforcements arrived? 24665 | -3/Research | Revision forces began assault on 0b10 24681 | -3/Research | Met up with Revision 17++ 24764 | -3/Research | Fabricated Huge Storage Unit? 24811 | -3/Research | Found Scrap Suit 25138 | -3/Research | Found Corrupted Scrap Suit 25142 | -3/Research | Found Corrupted Scrap Suit 25165 | -3/Research | Research terminal network offline 25179 | -3/Research | Found Gamma Bomb Array 25199 | -3/Research | Watched by a mysterious "MATRIX" hacker 25218 | -3/Research | Build established: Scavenger-Scrapper 25236 | -3/Research | Identified Core Reset Matrix 25300 | -3/Research | Spotted Striker 25387 | -3/Research | Spotted B-86 Titan 25403 | -3/Research | Destroyed B-86 Titan 25472 | -3/Research | Attached CPS modules to Revision 17++ 25503 | -3/Research | Discovered new exit (range 15) 25503 | -3/Research | Spotted B-90 Cyclops 25523 | -3/Research | Destroyed B-90 Cyclops 25567 | -3/Research | Murdered Revision 17++ 25595 | -3/Research | Entered Quarantine 25766 | -3/Quarantine | Found Alien Artifact 25871 | -3/Quarantine | Lost 3 parts (1p2w) 25887 | -3/Quarantine | System corruption reached 10% 26064 | -3/Quarantine | Cryocooling Duct disabled 26079 | -3/Quarantine | Ambient heat levels rising (+20) 26079 | -3/Quarantine | Non-combat units ordered to evacuate 26095 | -3/Quarantine | First assault squad dispatched 26152 | -3/Quarantine | Cryocooling Duct disabled 26167 | -3/Quarantine | Ambient heat levels rising (+20) 26167 | -3/Quarantine | Combat units ordered to evacuate 26227 | -3/Quarantine | Build established: Scavenger-Tank 26267 | -3/Quarantine | Quarantine Guard activated 26314 | -3/Quarantine | Spotted Quarantine Guard 26318 | -3/Quarantine | Spotted Quarantine Guard 26320 | -3/Quarantine | Destroyed Quarantine Guard 26321 | -3/Quarantine | Spotted Quarantine Guard 26338 | -3/Quarantine | Spotted Quarantine Guard 26339 | -3/Quarantine | Destroyed Quarantine Guard 26345 | -3/Quarantine | Destroyed Quarantine Guard 26356 | -3/Quarantine | Destroyed Quarantine Guard 26359 | -3/Quarantine | Learned Research recycling unit intel 26387 | -3/Quarantine | Found Alien Reactor 26392 | -3/Quarantine | Learned 8 Access zone layouts 26430 | -3/Quarantine | Learned Section 7 terminal intel 26432 | -3/Quarantine | Learned 4 Access zone layouts 26445 | -3/Quarantine | Spotted Quarantine Guard 26452 | -3/Quarantine | Spotted Quarantine Guard 26453 | -3/Quarantine | Destroyed Quarantine Guard 26459 | -3/Quarantine | Destroyed Quarantine Guard 26488 | -3/Quarantine | Found Alien Slashing Weapon 26533 | -3/Quarantine | Spotted Quarantine Guard 26533 | -3/Quarantine | Spotted Quarantine Guard 26537 | -3/Quarantine | Destroyed Quarantine Guard 26546 | -3/Quarantine | Destroyed Quarantine Guard 26568 | -3/Quarantine | Identified Sigix Broadsword 26569 | -3/Quarantine | Found Alien Energy Cannon 26573 | -3/Quarantine | Repaired Broken Gamma Bomb Array+? 26620 | -3/Quarantine | Spotted Quarantine Guard 26640 | -3/Quarantine | Attached CPS modules to Quarantine Guard 26648 | -3/Quarantine | Destroyed Quarantine Guard 26651 | -3/Quarantine | Spotted Quarantine Guard 26657 | -3/Quarantine | Destroyed Quarantine Guard 26735 | -3/Quarantine | Found Com. Tesla Bomb Launcher 26844 | -3/Quarantine | Repaired Broken Particle Reactor 26877 | -3/Quarantine | Found Alien Impact Weapon 26884 | -3/Quarantine | Spotted Quarantine Guard 26899 | -3/Quarantine | Destroyed Quarantine Guard 26916 | -3/Quarantine | Build established: Scavenger-Gunner 27018 | -3/Quarantine | Found Alien Artifact 27026 | -3/Quarantine | Found Alien Artifact 27027 | -3/Quarantine | Identified Dimensional Node Initializer 27027 | -3/Quarantine | Initialized slip node 27031 | -3/Quarantine | Found Dimensional Node Initializer 27041 | -3/Quarantine | Found Alien Artifact 27041 | -3/Quarantine | Identified Hpw. Transdimensional Reconstructor (x2) 27041 | -3/Quarantine | Warped through subspace to slip node 27051 | -3/Quarantine | Identified Subatomic Replicator 27051 | -3/Quarantine | Used Subatomic Replicator to create Alien Artifact 27053 | -3/Quarantine | Identified Supercharged TR 27053 | -3/Quarantine | Warped through subspace to slip node 27062 | -3/Quarantine | Found Hpw. Transdimensional Reconstructor 27426 | -3/Quarantine | System corruption reached 30% 27749 | -3/Quarantine | Entered Research 27749 | -2/Research | Evolved 2 slots: Power x1, Weapon x1 27750 | -2/Research | Identified exit to Access 27751 | -2/Research | Loaded intel: 5 recycling unit locations 27856 | -2/Research | Discovered new exit (range 9) 28063 | -2/Research | Loaded intel: 5 recycling unit locations 28155 | -2/Research | Build established: Scavenger-Tank 28392 | -2/Research | Entered Testing 28439 | -2/Testing | Found Prototype Energy Gun 28439 | -2/Testing | Identified Tachyon Dispersion Ray 28655 | -2/Testing | Found Prototype Energy Gun 28655 | -2/Testing | Identified Warp Gun 28731 | -2/Testing | Found Prototype Energy Cannon 28731 | -2/Testing | Identified Cld. Nova Cannon 28752 | -2/Testing | Spotted Striker 28841 | -2/Testing | Found Prototype Reactor 28841 | -2/Testing | Identified Zero-point Reactor 28868 | -2/Testing | System corruption reached 10% 29076 | -2/Testing | Found Hvy. Reactive Plating 29172 | -2/Testing | Build established: Generator-Tank 29246 | -2/Testing | Unchained authorized (V4-D3R) 29597 | -2/Testing | Spotted PD-DVE5QANML4 29608 | -2/Testing | Identified Matter Drive 29623 | -2/Testing | Scanned by Researcher 29636 | -2/Testing | Warped through subspace 29642 | -2/Testing | First assault squad dispatched 29668 | -2/Testing | Identified Core Stripper 29744 | -2/Testing | Destroyed 8 combat bots 30171 | -2/Testing | Spotted V4-D3R 30183 | -2/Testing | Destroyed V4-D3R 30194 | -2/Testing | Found Prototype Protection 30210 | -2/Testing | Destroyed 7 combat bots 30242 | -2/Testing | Lost 3 parts (1p1n1w) 30245 | -2/Testing | Found V4-D3R's Forcewell 30246 | -2/Testing | Discovered exit to Access (range 12) 30248 | -2/Testing | Found Femtoactuators 30266 | -2/Testing | Found Med. Regenerative Plating 30482 | -2/Testing | Fabricated Weapon Mount (x2) 30615 | -2/Testing | Spotted Fortress 30642 | -2/Testing | Destroyed Fortress 30653 | -2/Testing | Found Prototype Reactor 30653 | -2/Testing | Identified Vortex Chain Reactor 30662 | -2/Testing | Found Prototype Device 30662 | -2/Testing | Identified Exp. Force Field 30672 | -2/Testing | Found Prototype Device 30672 | -2/Testing | Identified Thermal Barrier 30691 | -2/Testing | Identified V4-D3R's Cape 30783 | -2/Testing | Discovered new exit (range 5) 30783 | -2/Testing | Discovered new exit (range 6) 30789 | -2/Testing | Build established: Generator-Gladiator 30793 | -2/Testing | Entered Protoforge 30807 | -2/Protoforge | Superfortress began startup sequence 31043 | -2/Protoforge | First assault squad dispatched 31078 | -2/Protoforge | Targeted by mysterious "MATRIX" hacker 31110 | -2/Protoforge | Spotted EXE-6 31115 | -2/Protoforge | Spotted EXE-6 31119 | -2/Protoforge | Spotted AP7-3 31135 | -2/Protoforge | Destroyed EXE-6 31137 | -2/Protoforge | Destroyed EXE-6 31152 | -2/Protoforge | Spotted AP7-3 31156 | -2/Protoforge | Build established: Generator-Tank 31170 | -2/Protoforge | Destroyed AP7-3 31184 | -2/Protoforge | Destroyed AP7-3 31186 | -2/Protoforge | Spotted Decapitator 31186 | -2/Protoforge | Spotted Decapitator 31190 | -2/Protoforge | Destroyed Decapitator 31195 | -2/Protoforge | Destroyed Decapitator 31198 | -2/Protoforge | System corruption reached 30% 31225 | -2/Protoforge | Destroyed 12 combat bots 31228 | -2/Protoforge | Lost 4 parts (3p1w) 31280 | -2/Protoforge | UFD initiated attack on Protoforge (Readiness: Low) 31280 | -2/Protoforge | Loaded intel: 3 recycling unit locations 31318 | -2/Protoforge | Optimus greeted in Protoforge 31319 | -2/Protoforge | Spotted EXE-6 31359 | -2/Protoforge | Found Prototype Processor 31360 | -2/Protoforge | Identified Exp. Armor Integrity Analyzer 31475 | -2/Protoforge | Met 7R-MNS 31515 | -2/Protoforge | Spotted Hotshot 31522 | -2/Protoforge | Destroyed Hotshot 31522 | -2/Protoforge | Spotted Hotshot 31522 | -2/Protoforge | Spotted Hotshot 31523 | -2/Protoforge | Spotted Hotshot 31571 | -2/Protoforge | Forge Plexus network access discovered 31579 | -2/Protoforge | Spotted Decapitator 31581 | -2/Protoforge | Spotted Decapitator 31582 | -2/Protoforge | Spotted Decapitator 31582 | -2/Protoforge | Spotted Decapitator 31595 | -2/Protoforge | Identified Core Cannon 31596 | -2/Protoforge | Additional patrols dispatched to research labs 31636 | -2/Protoforge | Lost 4 allies 31680 | -2/Protoforge | Crushed by falling debris 31681 | -2/Protoforge | Core integrity fell below 50% 31682 | -2/Protoforge | Found Cep. Helical Railcannon 31691 | -2/Protoforge | Found Cep. Deflector Sword 31694 | -2/Protoforge | Found Exp. Jetlance 31704 | -2/Protoforge | Found Cep. XC Strikerail 31706 | -2/Protoforge | Spotted V180-v 31706 | -2/Protoforge | Spotted V100-u 31706 | -2/Protoforge | Spotted V113-x 31717 | -2/Protoforge | Destroyed V113-x 31724 | -2/Protoforge | Attached CPS modules to V180-v 31757 | -2/Protoforge | Lost 3 parts (1p1n1w) 31761 | -2/Protoforge | Found Cep. Melee Reflex Suite 31768 | -2/Protoforge | Found Cep. Gyrokinetic System 31773 | -2/Protoforge | Found Cep. Gyrokinetic System 31811 | -2/Protoforge | Found Cep. Deflector Sword 31814 | -2/Protoforge | Found Faulty Cep. Plasma Driver 31816 | -2/Protoforge | Found Femtoactuators 31829 | -2/Protoforge | Found Femtoactuators 31847 | -2/Protoforge | Found Exp. Shield Generator 31890 | -2/Protoforge | Found Exp. Jetlance 31894 | -2/Protoforge | Found Cep. Helical Railcannon 31898 | -2/Protoforge | Found Faulty Exp. Jetlance 31912 | -2/Protoforge | Found Faulty Cep. Plasma Driver 31968 | -2/Protoforge | Spotted Hotshot 31970 | -2/Protoforge | Spotted Hotshot 31970 | -2/Protoforge | Spotted Hotshot 31980 | -2/Protoforge | Destroyed Hotshot 31981 | -2/Protoforge | Destroyed Hotshot 31993 | -2/Protoforge | Spotted Decapitator 31994 | -2/Protoforge | Spotted Decapitator 32005 | -2/Protoforge | Destroyed Decapitator 32005 | -2/Protoforge | Destroyed Decapitator 32060 | -2/Protoforge | Spotted Immortal 32061 | -2/Protoforge | Spotted Immortal 32079 | -2/Protoforge | Destroyed Immortal 32083 | -2/Protoforge | Build established: Scavenger-Tank 32088 | -2/Protoforge | Destroyed Immortal 32171 | -2/Protoforge | Found Cep. Weapon Articulator 32221 | -2/Protoforge | Found Crosscalibrator 32239 | -2/Protoforge | Spotted Decapitator 32239 | -2/Protoforge | Spotted Decapitator 32239 | -2/Protoforge | Spotted Decapitator 32239 | -2/Protoforge | Spotted Decapitator 32247 | -2/Protoforge | Destroyed Decapitator 32251 | -2/Protoforge | Destroyed Decapitator 32254 | -2/Protoforge | Destroyed Decapitator 32256 | -2/Protoforge | Destroyed Decapitator 32336 | -2/Protoforge | Found Cep. Gyrokinetic System 32341 | -2/Protoforge | Found Faulty Cep. Combat Aerolev Unit 32349 | -2/Protoforge | Found Faulty Cep. Gyrokinetic System 32370 | -2/Protoforge | Found Cep. Combat Aerolev Unit 32417 | -2/Protoforge | Spotted V682-f 32428 | -2/Protoforge | Spotted Immortal 32448 | -2/Protoforge | Destroyed Immortal 32459 | -2/Protoforge | Destroyed V682-f 32461 | -2/Protoforge | Found Cep. Combat Aerolev Unit 32481 | -2/Protoforge | Found Cep. Combat Aerolev Unit 32483 | -2/Protoforge | Found Cep. Combat Aerolev Unit 32500 | -2/Protoforge | Spotted Immortal 32548 | -2/Protoforge | Destroyed Immortal 32566 | -2/Protoforge | Found Prototype Launcher 32566 | -2/Protoforge | Identified Cep. EMP Blanket Launcher 32615 | -2/Protoforge | Found Cep. Deflector Sword 32641 | -2/Protoforge | Spotted Immortal 32665 | -2/Protoforge | Destroyed Immortal 32684 | -2/Protoforge | Spotted V342-b 32689 | -2/Protoforge | Destroyed V342-b 32694 | -2/Protoforge | Found Cep. Antigrav Storage Unit 32700 | -2/Protoforge | Found Cep. Deflector Sword 32703 | -2/Protoforge | Found Cep. Chromion Battery 32704 | -2/Protoforge | Found Cep. NT7 Matterbank 32728 | -2/Protoforge | Spotted Decapitator 32728 | -2/Protoforge | Spotted Decapitator 32738 | -2/Protoforge | Destroyed Decapitator 32792 | -2/Protoforge | Found Faulty Cep. Zero-point Core 32793 | -2/Protoforge | Found Faulty Cep. Zero-point Core 32817 | -2/Protoforge | Found Cep. Zero-point Core 32820 | -2/Protoforge | Found Cep. Zero-point Core 32891 | -2/Protoforge | Spotted AP7-3 32891 | -2/Protoforge | Spotted AP7-3 32956 | -2/Protoforge | Destroyed AP7-3 32956 | -2/Protoforge | Destroyed AP7-3 32980 | -2/Protoforge | Found Faulty Cld. Directed Potential Cannon 32984 | -2/Protoforge | Found Faulty Cld. Directed Potential Cannon 33042 | -2/Protoforge | Build established: Generator-Sprinter 33090 | -2/Protoforge | Found Faulty Cep. Thermoelectric Network 33091 | -2/Protoforge | Found Faulty Cep. Dimensional Manipulator 33092 | -2/Protoforge | Found Faulty Cep. Cloak Mesh 33094 | -2/Protoforge | Found Cep. Cloak Mesh 33225 | -2/Protoforge | Found Cep. Thermoelectric Network 33267 | -2/Protoforge | Found Cep. Cloak Mesh 33360 | -2/Protoforge | Found Cep. Nanofilaments [Polyglass] 33360 | -2/Protoforge | Installed Cep. Nanofilaments [Polyglass], 3 resistances modified: KI -10%, TH +20%, EX -50% 33442 | -2/Protoforge | Spotted Striker 33454 | -2/Protoforge | Found Cep. Core Shell 33526 | -2/Protoforge | Spotted Executioner 33540 | -2/Protoforge | Spotted Executioner 33541 | -2/Protoforge | Core integrity fell below 20% 33613 | -2/Protoforge | Spotted Striker 33613 | -2/Protoforge | Spotted Striker 33618 | -2/Protoforge | Spotted Striker 33618 | -2/Protoforge | Spotted Striker 33638 | -2/Protoforge | Found Cep. Weapon Articulator 33742 | -2/Protoforge | Spotted B-90 Cyclops 33749 | -2/Protoforge | Spotted Striker 33754 | -2/Protoforge | Discovered exit to Access (range 3) 33755 | -2/Protoforge | Entered Access 33755 | -1/Access | Evolved 2 slots: Weapon x2 33814 | -1/Access | Discovered new exit (range 6) 33895 | -1/Access | Discovered new exit (range 8) 33950 | -1/Access | Entered Command 34003 | -1/Command | Spotted M Guard 34003 | -1/Command | Spotted M Guard 34003 | -1/Command | Spotted Combat Programmer 34003 | -1/Command | Spotted Combat Programmer 34044 | -1/Command | Destroyed Combat Programmer 34049 | -1/Command | Destroyed Combat Programmer 34071 | -1/Command | Destroyed M Guard 34078 | -1/Command | Destroyed M Guard 34078 | -1/Command | All MAIN.C guards destroyed 34080 | -1/Command | Spotted Executioner 34082 | -1/Command | Spotted Executioner 34085 | -1/Command | Destroyed Executioner 34089 | -1/Command | Destroyed Executioner 34096 | -1/Command | Found Prototype Protection 34117 | -1/Command | 0b10 Conduit disabled 34194 | -1/Command | High security lockdown imminent 34252 | -1/Command | Met MAIN.C 34256 | -1/Command | Destroyed 55 combat bots 34270 | -1/Command | Destroyed MAIN.C Shell 34272 | -1/Command | MAIN.C activated Command garrisons 34302 | -1/Command | Destroyed MAIN.C 34303 | -1/Command | Identified Hvy. Regenerative Plating 34303 | -1/Command | Discovered new exit (range 36) 34303 | -1/Command | Discovered new exit (range 98) 34303 | -1/Command | Extracted map data and part IDs from MAIN.C's data core 34309 | -1/Command | Found Exp. Powered Armor 34324 | -1/Command | Lost 9 parts (2p3n1u3w) 34328 | -1/Command | Spotted B-99 Colossus 34371 | -1/Command | Spotted B-99 Colossus 34409 | -1/Command | Destroyed B-99 Colossus 34466 | -1/Command | Spotted Striker 34466 | -1/Command | Spotted Striker 34467 | -1/Command | Destroyed Striker 34469 | -1/Command | Destroyed Striker 34522 | -1/Command | Destroyed 8 combat bots 34571 | -1/Command | Destroyed B-99 Colossus 34656 | -1/Command | Found Exp. System Purifier 34661 | -1/Command | Found Vortex Chain Reactor 34662 | -1/Command | Found Vortex Chain Reactor 34822 | -1/Command | Spotted Striker 34823 | -1/Command | Destroyed Striker 34849 | -1/Command | Spotted B-99 Colossus 35987 | -1/Command | Warped through subspace to slip node 35987 | -1/Command | Discovered new exit (range 5) 35991 | -1/Command | Entered Access_0 35995 | -1/Access_0 | Met Architect 36004 | -1/Access_0 | Destroyed A8 36022 | -1/Access_0 | Architect warped through subspace 36054 | -1/Access_0 | Lost 4 parts (2n2w) 36062 | -1/Access_0 | Architect warped through subspace 36124 | -1/Access_0 | Core integrity fell below 50% 36149 | -1/Access_0 | Lost 6 parts (2n4w) 36167 | -1/Access_0 | A6 warped into view 36201 | -1/Access_0 | Lost 4 parts (1p2n1w) 36226 | -1/Access_0 | A5 warped into view 36264 | -1/Access_0 | Core integrity fell below 20% 36273 | -1/Access_0 | Lost 4 parts (1p1n2u) 36296 | -1/Access_0 | Destroyed by Architect with Modified Sigix Sheargun Last Messages --------------- 36242_ Penetrated by HV Slug. 36242_ Cep. Zero-point Core destroyed. 36242_ HV Slug penetrates Wall. 36251_ Quantum Shear penetrates Wall. 36259_ Deflected attack with Cep. Deflector Sword. 36259_ Quantum Shear penetrates Wall. 36259_ Penetrated by Quantum Shear. 36270_ Quantum Shear penetrates Wall. 36270_ Quantum Shear penetrates A6. 36272_ Quantum Shear penetrates Workstation. 36272_ Penetrated by Quantum Shear. 36275_ Quantum Shear penetrates Wall. 36275_ Workstation disabled. 36275_ A6 follow-up attacks with Enh. Force Lance. 36277_ Cmb. Linear Gravjet destroyed. 36277_ Quantum Shear penetrates Workstation. 36277_ Penetrated by Quantum Shear. 36277_ Quantum Shear penetrates Workstation. 36282_ Cmb. Linear Gravjet destroyed. 36293_ Quantum Shear penetrates Wall. Map ----- +----------------------------------------------------+ | ?????????????????????????????????????????????????? | | ?????????????????????????????????????????????????? | | ?????????????????????????????????????????????????? | | ?????????????????????????????????????????????????? | | ?????????????????????????????????????????????????? | | ?????????????????????????????????????????????????? | | ?????????????????????????????????????????????????? | | ?????????????????????????????????????????????????? | | ?????????????????????????????????????????????????? | | ?????????????????????????????????????????????????? | | ?????????????????????????????????????????????????? | | ?????????????????????????##??????????????????????? | | ????????????????????????? ?????????????????????? | | ????????????????????????? ?????????????????????? | | ????????????????????????? ??????????????????????? | | ????????????????????????? ??????????????????????? | | ???????????????????????## ??????????????????????? | | ???????????????????????#; ??????????????????????? | | ???????????????????????# ??????????????????????? | | ???????????????????????# #??????????????????????? | | ???????????????????????# #??????????????????????? | | ???????????????????????# ##????????????????# ???? | | ???????????????????????# ##?????????????## ??? | | ???????????????????????# #???????????### ???? | | ???????????????????????# #???????????? ??? | | ???????????????????????# @ #???????????? ???? | | ??????????????????????## #????????????# ???? | | ??????????????????????# #????????????# #???? | | ??????????????????????## p #????????????# #???? | | ???????????????????????## ###???????###? #???? | | ????????????????????????# ######### ### #???? | | ????????????????????????#; 0 ## ####? | | ????????????????????????##; # ## | | ??????????????????????????# ########### # | | ??????????????????????????# #???######" | | ??????????????????????????# #???#"" | | ??????????????????????????# #???" ## | | ??????????????????????????# #?#"" "" ##? | | ??????????????????????????#p#?#!" "#### #?? | | ??????????????????????????# #??" ##???# ### | | ??????????????????????????# #??#""" #????# | | ??????????????????????????# #???#"# #????##### | | ??????????????????????????# #???### ##????????? | | ??????????????????????????# #?????# ##?????????? | | ??????????????????????????# ####### #??????????? | | ??????????????????????????# #??????????? | | ??????????????????????????# ##??????????? | | ??????????????????????????###### ##???????????? | | ???????????????????????????????# ##????????????? | | ???????????????????????????????# ##?????????????? | +----------------------------------------------------+ Best States ------------- Heat Dissipation 107 Coolant Potential 120 Energy Generation 101 Energy Capacity 2440 Matter Stores 300 Matter Capacity 300 Sight Range 16 Terrain Scan Range 30 Terrain Scan Density 10 Jamming Range 16 Cloak Strength 9 Armor Coverage 625 Resistance: TH 50 Resistance: EM 75 Core Shielding 90 Projectile Deflection 40 Weapon Cycling 25 Melee Speed Boost 50 Evasion (%) 72 Targeting Accuracy 30 Armor Integrity Analysis 40 Recoil Reduction 10 Particle Charging 25 Offensive Hacking 25 Defensive Hacking 10 Trap Extractor Capacity 8 Item Schematics ----------------- Huge Storage Unit | -10/Materials | Hacked Weapon Mount | -6/Factory | Hacked Centrium Heavy Treads | -5/Factory | Scanalyzed Adv. KE Penetrator | -5/Factory | Scanalyzed Assault Drone Bay | -5/Zhirov | Free Exp. Heat Sink | -5/Zhirov | Free Exp. Optical Array | -5/Zhirov | Free Imp. Arc Thrower | -5/Zhirov | Free CPS Tube | -4/Factory | Scanalyzed Gamma Bomb Array | -3/Quarantine | Scanalyzed Exp. Signal Interpreter | -2/Protoforge | Archive Cld. Phase Cannon | -2/Protoforge | Archive Lrn. Phase Cannon | -2/Protoforge | Archive Shock Maul | -2/Protoforge | Archive Adv. Matter Compressor | -2/Protoforge | Archive Cld. Field Propulsion Drive | -2/Protoforge | Archive Robot Schematics ------------------ A-27 Freighter | -2/Protoforge | Archive K-01 Serf | -2/Protoforge | Archive R-10 Processor | -2/Protoforge | Archive Fabricated ------------ Huge Storage Unit | x1 | -3/Research Weapon Mount | x2 | -2/Testing Repaired ---------- Spk. Treads | 35% | -6/Extension Centrium Heavy Treads | 28% | -5/Factory | Broken Adv. KE Penetrator | 35% | -5/Factory | Broken Centrium Medium Armor Plating | 73% | -5/Factory Centrium Heavy Treads | 44% | -5/Factory Centrium Heavy Treads | 46% | -5/Factory Adv. KE Penetrator | 55% | -5/Factory Gamma Bomb Array | 99% | -3/Quarantine | Broken Particle Reactor | 31% | -3/Quarantine | Broken Studied --------- Arm. Huge Wheel | -4/Factory | Hacked Lrn. Missile Launcher | -4/Factory | Hacked Gamma Rifle | -3/Research | Hacked Mic. Antimatter Reactor | -3/Research | Hacked Gamma Bomb Array | -3/Research | Hacked Lgt. Particle Reactor | -3/Quarantine | Hacked Quantum Reactor | -2/Testing | Hacked Enh. Nova Cannon | -2/Testing | Hacked Particle Reactor | -2/Testing | Hacked Alien Tech Used ----------------- Integrated Dissipator Core Expander Transdimensional Reconstructor Integrated Mediator Sigix Broadsword Dimensional Node Initializer High-powered Transdimensional Reconstructor Subatomic Replicator Supercharged TR Matter Drive Core Stripper Core Cannon Concept Nanofilaments [Polyglass] Achievements -------------- None Challenges ------------ None Game ------ Seed SalvageParticleLayer Manual? 0 Play Time 08:05:25 Cumulative 1825.6 hours Start 2026.09.16 @ 12:10:32 End 2026.09.17 @ 01:21:52 Sessions 7 Manual Loads 0 Difficulty Rogue Special Mode None Game No. 550 Rogue 542 Adventurer 4 Explorer 4 Win Type - Total 77 Types 32/12/6/4/2/5/9/2/3/2 Lore% 98 Gallery% 96 Achievement% 93 Wizard Run 0 Options --------- Layout 0 ASCII 0 Keyboard 0 Movement Numpad Keybinds 0 Fullscreen 2 Font 18/SmallcapsGlow Map View 76x50 Zoom Use 16% Tactical HUD 1 Map Filters NONE Filters NONE Steam 1 RUN: a149832e-ae28-4e1c-aaa7-f30b235683f4